Workbook

Sheet Отчет
A1: Кумулятивный рейтинг для выпускников
A2: Учебный год выпуска: 2014/2015 учебный год
A3: Факультет: Факультет коммуникаций, медиа и дизайна
A4: Уровень образования: Бакалавриат
A5: Направление "Журналистика"
A10: Место | B10: Студент | C10: 2007/2008 учебный год 3 модуль | D10: 2011/2012 учебный год 1 модуль | E10: 2011/2012 учебный год 2 модуль | S10: 2011/2012 учебный год 3 модуль | Y10: 2011/2012 учебный год 4 модуль | AQ10: 2012/2013 учебный год 1 модуль | AU10: 2012/2013 учебный год 2 модуль | BT10: 2012/2013 учебный год 3 модуль | CD10: 2012/2013 учебный год 4 модуль | DH10: 2013/2014 учебный год 1 модуль | DI10: 2013/2014 учебный год 2 модуль | DV10: 2013/2014 учебный год 3 модуль | EB10: 2013/2014 учебный год 4 модуль | EQ10: 2014/2015 учебный год 1 модуль | ES10: 2014/2015 учебный год 2 модуль | FA10: 2014/2015 учебный год 3 модуль | FI10: 2014/2015 учебный год 4 модуль | FU10: Кумулятивный рейтинг | FV10: Средняя оценка | FW10: Сумма оценок | FX10: Количество оценок | FY10: Минимальный балл
C11: Зачет | D11: Экзамен | E11: Экзамен | I11: Зачет | S11: Экзамен | V11: Зачет | Y11: Экзамен | AE11: Зачет | AQ11: Экзамен | AR11: Зачет | AU11: Экзамен | AZ11: Зачет | BT11: Экзамен | CA11: Зачет | CD11: Экзамен | CR11: Зачет | DH11: Зачет | DI11: Экзамен | DK11: Зачет | DV11: Экзамен | EB11: Экзамен | EG11: Зачет | EQ11: Экзамен | ES11: Экзамен | EY11: Зачет | FA11: Экзамен | FI11: Экзамен | FN11: Зачет | FO11: Экзамен
C12: История западноевропейской музыки: от Баха до Шенберга. Опыт философского анализа и рационального восприятия | D12: Информационные технологии подготовки печатных и электронных СМИ | E12: Математическое введение в экономику | F12: Математическое введение в экономику | G12: Философия | H12: Философия | I12: Безопасность жизнедеятельности | J12: Иностранный язык (английский) | K12: Иностранный язык (английский) | L12: История | M12: История | N12: История западноевропейской музыки: от Баха до Шёнберга. Опыт философского анализа и рационального восприятия | O12: История и теория массовых коммуникаций | P12: Мода, костюм, личность: человек и его одежда в общественном пространстве | Q12: Основы Web-дизайна. Часть 2. Каскадные таблицы стилей (CSS) | R12: Физическая культура | S12: Иностранный язык (английский) | T12: Иностранный язык (английский) | U12: История и теория литературы | V12: Кино в культуре современности | W12: Мультимедиа технологии. Уровень 2. Компьютерная графика. Основы работы с Adobe Photoshop | X12: Современная Германия: политика, экономика, общество (изучена на немецком языке) | Y12: История | Z12: История | AA12: История и теория массовых коммуникаций | AB12: Научно-практический семинар "Исследование медиа-процессов" | AC12: Социология | AD12: Экономика | AE12: Восток и Запад в истории мировых цивилизаций | AF12: Научно-практический семинар "Исследование медиа-процессов" | AG12: Научно-практический семинар "Исследование медиа-процессов" | AH12: Оборудование и программное обеспечение радиостудии | AI12: Основы звукозаписи и радиомонтажа | AJ12: Политическая система и политический процесс современной России | AK12: Практикум по эффективной письменной коммуникации | AL12: Психология | AM12: Психология | AN12: Теория и практика русского литературного языка | AO12: Физическая культура | AP12: Экономика России | AQ12: Информационные технологии подготовки печатных и электронных СМИ | AR12: Безопасность жизнедеятельности | AS12: Безопасность жизнедеятельности | AT12: Учебная (ознакомительная) практика | AU12: История | AV12: История | AW12: История и теория литературы | AX12: Философия | AY12: Экономика | AZ12: Иностранный язык (английский) | BA12: Иностранный язык (английский) | BB12: Иностранный язык (английский) | BC12: Иностранный язык (французский) | BD12: История | BE12: История | BF12: История | BG12: История и теория литературы | BH12: Математическое введение в экономику | BI12: Научно-практический семинар "Исследование медиа-процессов" | BJ12: Научно-практический семинар "Исследование медиа-процессов" | BK12: Политология | BL12: Политология | BM12: Политология | BN12: Правоведение | BO12: Теория и практика русского литературного языка | BP12: Физическая культура | BQ12: Физическая культура | BR12: Философия | BS12: Экономика | BT12: Иностранный язык (английский) | BU12: Иностранный язык (английский) | BV12: История и теория литературы | BW12: История и теория массовых коммуникаций | BX12: Политология | BY12: Политология | BZ12: Политология | CA12: Культурология | CB12: Правоведение | CC12: Развитие университетов: История развития университетов | CD12: Выпуск учебной газеты, радио-, телепередач. Профессиональные творческие студии | CE12: Иностранный язык (английский) | CF12: История | CG12: История | CH12: Курсовая работа | CI12: Курсовая работа | CJ12: Менеджмент | CK12: Научно-практический семинар "Исследование медиа-процессов" | CL12: Научно-практический семинар "Исследование медиа-процессов" | CM12: Научно-практический семинар "Исследование медиа-процессов" | CN12: Психология (включая основы социальной психологии) | CO12: Социология | CP12: Социология | CQ12: Экономика | CR12: Аналитические жанры в современной журналистике: теория и практика | CS12: Иностранный язык (английский) | CT12: Иностранный язык (английский) | CU12: Иностранный язык (французский) | CV12: История и теория литературы | CW12: История отечественных телевизионных форматов | CX12: Основы режиссёрской и операторской культуры тележурналиста | CY12: Развитие университетов: Современный университет и системы высшего образования | CZ12: Режиссура презентаций и публичных выступлений | DA12: Социология | DB12: Техника речи | DC12: Физическая культура | DD12: Физическая культура | DE12: Экономика | DF12: Экранные искусства в истории зрелищной культуры | DG12: Язык СМИ | DH12: Первая производственная практика | DI12: История | DJ12: Политическая журналистика | DK12: Выпуск учебной газеты, радио-, телепередач. Профессиональные творческие студии | DL12: Деловая журналистика | DM12: Иностранный язык (английский) | DN12: Иностранный язык (английский) | DO12: Иностранный язык (французский) | DP12: Исследование медиа-процессов | DQ12: История | DR12: История и теория литературы | DS12: Правоведение | DT12: Физическая культура | DU12: Физическая культура | DV12: Иностранный язык (английский) | DW12: Иностранный язык (английский) | DX12: История | DY12: История | DZ12: Правоведение | EA12: Теория и практика русского литературного языка | EB12: Исследование медиа-процессов | EC12: История и теория литературы | ED12: Культурология | EE12: Курсовая работа | EF12: Маркетинг | EG12: Выпуск учебной газеты, радио-, телепередач. Профессиональные творческие студии | EH12: Дизайн СМИ | EI12: Иностранный язык (французский) | EJ12: Конфликтология | EK12: Писатель у микрофона: Довлатов, Аксенов, Бродский в свободном эфире | EL12: Психология общения | EM12: Техника речи | EN12: Традиционные искусства и средства массовой коммуникации | EO12: Физическая культура | EP12: Физическая культура | EQ12: Вторая производственная практика | ER12: Политическая журналистика | ES12: Второй иностранный язык (французский) | ET12: Выпуск учебной газеты, радио-, телепередач. Профессиональные творческие студии | EU12: История | EV12: История | EW12: История и теория литературы | EX12: Политическая журналистика | EY12: Физическая культура | EZ12: Физическая культура | FA12: Государственная информационная политика | FB12: Деловая журналистика | FC12: Иностранный язык (английский) | FD12: Иностранный язык (английский) | FE12: Мастерство ведущего теле- и радио программ | FF12: Теория и практика русского литературного языка | FG12: Цифровой кинематограф: новые концепции визуального | FH12: Эволюция взаимоотношений медиа и бизнеса в России | FI12: Второй иностранный язык (французский) | FJ12: Курсовая работа | FK12: Междисциплинарный экзамен по направлению подготовки | FL12: Подготовка и защита выпускной квалификационной работы | FM12: Преддипломная практика | FN12: Физическая культура
A13: Число кумулятивных кредитов: | C13: 2 | D13: 3 | E13: 3 | F13: 4.5 | G13: 6 | H13: 9 | I13: 1.5 | J13: 3.1 | K13: 3.72 | L13: 1.96 | M13: 3 | N13: 2 | O13: 7.33 | P13: 2 | Q13: 2 | R13: 0 | S13: 1.9 | T13: 2.28 | U13: 6 | V13: 2 | W13: 0 | X13: 2 | Y13: 3 | Z13: 4.04 | AA13: 3.67 | AB13: 3 | AC13: 3 | AD13: 6 | AE13: 2 | AF13: 1 | AG13: 3 | AH13: 1.5 | AI13: 3 | AJ13: 4.5 | AK13: 3 | AL13: 3 | AM13: 6 | AN13: 3 | AO13: 0 | AP13: 3 | AQ13: 3 | AR13: 0 | AS13: 0.5 | AT13: 5 | AU13: 1.96 | AV13: 4 | AW13: 5 | AX13: 6 | AY13: 6 | AZ13: 2.57 | BA13: 3.08 | BB13: 3.72 | BC13: 0 | BD13: 2 | BE13: 5 | BF13: 6 | BG13: 2.69 | BH13: 3 | BI13: 1.04 | BJ13: 3 | BK13: 3 | BL13: 4.91 | BM13: 5.13 | BN13: 4.36 | BO13: 3 | BP13: 0 | BQ13: 0.25 | BR13: 6 | BS13: 4 | BT13: 1.92 | BU13: 2.28 | BV13: 5 | BW13: 4 | BX13: 1.87 | BY13: 4 | BZ13: 4.09 | CA13: 3 | CB13: 2.64 | CC13: 2 | CD13: 6 | CE13: 0 | CF13: 4.04 | CG13: 6 | CH13: 0 | CI13: 5 | CJ13: 6 | CK13: 1.96 | CL13: 2 | CM13: 4.5 | CN13: 3 | CO13: 4 | CP13: 4.5 | CQ13: 3 | CR13: 3 | CS13: 0.93 | CT13: 5 | CU13: 0 | CV13: 3.31 | CW13: 3 | CX13: 3 | CY13: 2 | CZ13: 3 | DA13: 4 | DB13: 0 | DC13: 0 | DD13: 0.25 | DE13: 6 | DF13: 3 | DG13: 3 | DH13: 6 | DI13: 1.81 | DJ13: 6 | DK13: 2 | DL13: 3 | DM13: 2.46 | DN13: 3.69 | DO13: 2.48 | DP13: 1.05 | DQ13: 3.19 | DR13: 2.69 | DS13: 3.19 | DT13: 0.22 | DU13: 0.44 | DV13: 1.54 | DW13: 2.31 | DX13: 1.81 | DY13: 3.19 | DZ13: 1.81 | EA13: 3 | EB13: 1.95 | EC13: 3.31 | ED13: 4 | EE13: 5 | EF13: 4 | EG13: 4 | EH13: 4 | EI13: 2.02 | EJ13: 4 | EK13: 4 | EL13: 4 | EM13: 4.5 | EN13: 4 | EO13: 0.28 | EP13: 0.56 | EQ13: 0 | ER13: 3.43 | ES13: 3.86 | ET13: 5 | EU13: 0 | EV13: 5 | EW13: 6 | EX13: 2.57 | EY13: 0 | EZ13: 1 | FA13: 3 | FB13: 9 | FC13: 3 | FD13: 4 | FE13: 3 | FF13: 6 | FG13: 3 | FH13: 3 | FI13: 4.14 | FJ13: 5 | FK13: 3 | FL13: 6 | FM13: 5 | FN13: 1 | FO13: 2 | FP13: 3 | FQ13: 4 | FR13: 5 | FS13: 6 | FT13: 8
A14: 1 | B14: Пожидаева Ирина Владимировна | D14: 8 | G14: 7 | J14: 8 | L14: 8 | O14: 9 | R14: 10 | S14: 8 | U14: 8 | Z14: 8 | AA14: 10 | AC14: 9 | AD14: 8 | AG14: 8 | AK14: 8 | AM14: 10 | AN14: 9 | AO14: 10 | AT14: 9 | AY14: 9 | BA14: 8 | BE14: 6 | BG14: 10 | BI14: 6 | BM14: 9 | BO14: 8 | BP14: 10 | BT14: 8 | BW14: 10 | BX14: 8 | CA14: 10 | CD14: 9 | CI14: 10 | CK14: 9 | CO14: 9 | CV14: 8 | CW14: 8 | DB14: 9 | DC14: 10 | DH14: 8 | DJ14: 8 | DK14: 8 | DL14: 8 | DM14: 10 | DP14: 8 | DQ14: 8 | DR14: 8 | DU14: 10 | DV14: 10 | DX14: 7 | EA14: 9 | EB14: 10 | EC14: 9 | ED14: 10 | EE14: 9 | EG14: 10 | EL14: 10 | EN14: 10 | EP14: 10 | EQ14: 9 | ER14: 9 | ET14: 9 | EW14: 10 | EX14: 8 | EZ14: 10 | FB14: 9 | FC14: 9 | FD14: 10 | FF14: 8 | FG14: 10 | FK14: 6 | FL14: 9 | FM14: 10 | FN14: 10 | FO14: 10 | FQ14: 8 | FR14: 10 | FS14: 10 | FU14: 2301.89 | FV14: =IF(FX14 > 0,FW14/FX14,0) -> 8.87012987 | FW14: 683 | FX14: 77 | FY14: =MIN($C14:FT14) -> 6
A15: 2 | B15: Павленко Валентина Юрьевна | D15: 8 | E15: 9 | G15: 9 | J15: 8 | L15: 8 | O15: 9 | R15: 10 | S15: 9 | U15: 8 | Z15: 5 | AA15: 9 | AD15: 9 | AG15: 9 | AM15: 10 | AN15: 9 | AO15: 10 | AP15: 9 | AT15: 9 | AY15: 9 | BA15: 9 | BC15: 9 | BE15: 7 | BG15: 7 | BI15: 10 | BN15: 9 | BO15: 10 | BP15: 10 | BT15: 7 | BW15: 10 | CB15: 9 | CD15: 7 | CI15: 10 | CJ15: 9 | CK15: 9 | CU15: 9 | CV15: 6 | CX15: 9 | DB15: 10 | DC15: 10 | DH15: 9 | DJ15: 9 | DK15: 9 | DL15: 10 | DM15: 10 | DO15: 10 | DP15: 9 | DQ15: 10 | DR15: 8 | DS15: 9 | DU15: 10 | DV15: 10 | DX15: 9 | DZ15: 10 | EA15: 10 | EB15: 9 | EC15: 9 | EE15: 10 | EF15: 8 | EG15: 9 | EI15: 10 | EL15: 10 | EN15: 10 | EP15: 10 | EQ15: 10 | ER15: 9 | ET15: 7 | EW15: 10 | EX15: 10 | EZ15: 10 | FB15: 10 | FC15: 10 | FD15: 10 | FF15: 10 | FH15: 10 | FK15: 10 | FL15: 10 | FM15: 10 | FN15: 10 | FU15: 2286.55 | FV15: =IF(FX15 > 0,FW15/FX15,0) -> 9.166666667 | FW15: 715 | FX15: 78 | FY15: =MIN($C15:FT15) -> 5
A16: 3 | B16: Латынин Антон Валерьевич | D16: 9 | G16: 7 | J16: 4 | L16: 5 | N16: 9 | O16: 8 | R16: 10 | S16: 5 | U16: 9 | X16: 8 | Z16: 8 | AA16: 7 | AC16: 9 | AD16: 7 | AG16: 7 | AI16: 4 | AM16: 8 | AN16: 6 | AO16: 10 | AT16: 10 | AY16: 8 | BA16: 9 | BC16: 8 | BE16: 8 | BG16: 10 | BI16: 10 | BM16: 10 | BO16: 9 | BP16: 10 | BT16: 7 | BW16: 9 | BX16: 10 | CA16: 10 | CD16: 10 | CE16: 8 | CI16: 10 | CK16: 10 | CO16: 10 | CU16: 8 | CV16: 8 | CW16: 10 | DB16: 10 | DC16: 10 | DH16: 10 | DJ16: 9 | DK16: 8 | DL16: 9 | DM16: 7 | DO16: 7 | DP16: 9 | DQ16: 8 | DR16: 9 | DU16: 10 | DV16: 7 | DX16: 8 | EA16: 7 | EB16: 9 | EC16: 9 | ED16: 10 | EE16: 8 | EG16: 8 | EI16: 8 | EJ16: 7 | EM16: 7 | EN16: 9 | EP16: 10 | EQ16: 10 | ER16: 4 | ET16: 8 | EW16: 5 | EX16: 8 | EZ16: 10 | FA16: 10 | FB16: 7 | FC16: 7 | FD16: 8 | FF16: 7 | FK16: 10 | FL16: 8 | FM16: 8 | FN16: 10 | FP16: 4 | FQ16: 7 | FR16: 7 | FS16: 5 | FT16: 8 | FU16: 2256.19 | FV16: =IF(FX16 > 0,FW16/FX16,0) -> 8.209302326 | FW16: 706 | FX16: 86 | FY16: =MIN($C16:FT16) -> 4
A17: 4 | B17: Гликин Константин Максимович | D17: 7 | G17: 10 | J17: 9 | L17: 6 | O17: 8 | R17: 10 | S17: 8 | U17: 9 | Z17: 9 | AA17: 10 | AC17: 10 | AD17: 8 | AG17: 8 | AM17: 10 | AN17: 8 | AO17: 10 | AP17: 10 | AT17: 9 | AY17: 8 | BA17: 10 | BE17: 8 | BG17: 10 | BI17: 5 | BM17: 10 | BO17: 8 | BP17: 10 | BT17: 8 | BW17: 8 | BX17: 10 | CA17: 10 | CD17: 7 | CI17: 9 | CK17: 9 | CO17: 8 | CV17: 8 | CW17: 9 | DC17: 10 | DH17: 8 | DJ17: 9 | DK17: 10 | DL17: 9 | DM17: 9 | DP17: 8 | DQ17: 9 | DR17: 8 | DU17: 10 | DV17: 8 | DX17: 8 | EA17: 9 | EB17: 9 | EC17: 10 | ED17: 10 | EE17: 10 | EG17: 9 | EJ17: 10 | EK17: 10 | EM17: 8 | EP17: 10 | EQ17: 9 | ER17: 10 | ET17: 10 | EW17: 10 | EX17: 10 | EZ17: 10 | FB17: 10 | FC17: 10 | FD17: 10 | FF17: 9 | FH17: 10 | FK17: 10 | FL17: 10 | FM17: 10 | FN17: 10 | FU17: 2255.16 | FV17: =IF(FX17 > 0,FW17/FX17,0) -> 9.082191781 | FW17: 663 | FX17: 73 | FY17: =MIN($C17:FT17) -> 5
A18: 5 | B18: Васильева Маргарита Николаевна | D18: 10 | G18: 9 | J18: 9 | L18: 7 | O18: 9 | Q18: 8 | R18: 10 | S18: 8 | U18: 8 | W18: 9 | Z18: 8 | AA18: 9 | AC18: 9 | AD18: 8 | AG18: 9 | AH18: 9 | AK18: 10 | AM18: 9 | AN18: 10 | AO18: 10 | AT18: 10 | AY18: 9 | BA18: 9 | BC18: 10 | BE18: 9 | BG18: 10 | BI18: 10 | BM18: 8 | BO18: 10 | BP18: 10 | BT18: 7 | BW18: 9 | BX18: 8 | CA18: 10 | CD18: 9 | CI18: 10 | CK18: 9 | CO18: 9 | CU18: 10 | CV18: 9 | CW18: 9 | DC18: 10 | DH18: 10 | DJ18: 7 | DK18: 10 | DL18: 9 | DM18: 10 | DO18: 8 | DP18: 10 | DQ18: 9 | DR18: 7 | DU18: 10 | DV18: 10 | DX18: 8 | EA18: 9 | EB18: 8 | EC18: 9 | ED18: 10 | EE18: 10 | EG18: 9 | EI18: 8 | EK18: 10 | EL18: 8 | EP18: 10 | EQ18: 10 | ER18: 8 | ET18: 10 | EW18: 9 | EX18: 10 | EZ18: 10 | FB18: 5 | FC18: 9 | FD18: 10 | FF18: 8 | FG18: 10 | FK18: 9 | FL18: 10 | FM18: 9 | FN18: 10 | FU18: 2236.58 | FV18: =IF(FX18 > 0,FW18/FX18,0) -> 9.088607595 | FW18: 718 | FX18: 79 | FY18: =MIN($C18:FT18) -> 5
A19: 6 | B19: Львова Анастасия Артуровна | D19: 10 | E19: 9 | G19: 9 | J19: 8 | L19: 5 | N19: 9 | O19: 9 | R19: 10 | S19: 7 | U19: 8 | Z19: 6 | AA19: 10 | AD19: 9 | AE19: 10 | AG19: 10 | AH19: 8 | AK19: 9 | AM19: 9 | AN19: 9 | AO19: 10 | AT19: 10 | AY19: 8 | BA19: 8 | BC19: 9 | BE19: 5 | BG19: 7 | BI19: 9 | BN19: 8 | BO19: 9 | BP19: 10 | BT19: 7 | BW19: 9 | CB19: 9 | CD19: 10 | CI19: 8 | CJ19: 7 | CK19: 8 | CU19: 9 | CV19: 6 | CX19: 10 | DB19: 10 | DC19: 10 | DH19: 10 | DJ19: 8 | DK19: 10 | DL19: 9 | DM19: 8 | DP19: 9 | DQ19: 8 | DR19: 8 | DS19: 9 | DU19: 10 | DV19: 7 | DX19: 8 | DZ19: 10 | EA19: 10 | EB19: 8 | EC19: 10 | EE19: 9 | EF19: 7 | EG19: 9 | EJ19: 8 | EK19: 10 | EM19: 9 | EP19: 10 | EQ19: 10 | ER19: 9 | ET19: 8 | EW19: 10 | EX19: 9 | EZ19: 10 | FB19: 9 | FC19: 10 | FD19: 9 | FF19: 8 | FG19: 9 | FK19: 10 | FL19: 8 | FM19: 9 | FN19: 10 | FU19: 2226.7 | FV19: =IF(FX19 > 0,FW19/FX19,0) -> 8.775 | FW19: 702 | FX19: 80 | FY19: =MIN($C19:FT19) -> 5
A20: 7 | B20: Мухаметдинова Элина Шамилевна | D20: 7 | E20: 8 | G20: 7 | J20: 10 | L20: 6 | O20: 9 | R20: 10 | S20: 10 | U20: 6 | Z20: 6 | AA20: 10 | AD20: 4 | AG20: 7 | AM20: 9 | AN20: 8 | AO20: 10 | AP20: 9 | AT20: 9 | AY20: 7 | BA20: 10 | BC20: 9 | BE20: 8 | BG20: 8 | BI20: 9 | BN20: 6 | BO20: 9 | BP20: 10 | BT20: 9 | BW20: 8 | CB20: 7 | CD20: 10 | CI20: 10 | CJ20: 7 | CK20: 9 | CU20: 9 | CV20: 6 | CX20: 10 | DB20: 9 | DC20: 10 | DH20: 9 | DJ20: 9 | DK20: 8 | DL20: 9 | DM20: 10 | DO20: 9 | DP20: 8 | DQ20: 8 | DR20: 7 | DS20: 8 | DU20: 10 | DV20: 10 | DX20: 5 | DZ20: 8 | EA20: 9 | EB20: 8 | EC20: 10 | EE20: 5 | EF20: 9 | EG20: 10 | EI20: 8 | EJ20: 8 | EK20: 6 | EP20: 10 | EQ20: 10 | ER20: 8 | ET20: 6 | EW20: 10 | EX20: 7 | EZ20: 10 | FA20: 10 | FB20: 8 | FC20: 10 | FD20: 9 | FF20: 8 | FK20: 8 | FL20: 9 | FM20: 10 | FN20: 10 | FO20: 10 | FQ20: 9 | FR20: 9 | FS20: 10 | FU20: 2225.18 | FV20: =IF(FX20 > 0,FW20/FX20,0) -> 8.5 | FW20: 697 | FX20: 82 | FY20: =MIN($C20:FT20) -> 4
A21: 8 | B21: Разумовская Мария Алексеевна | D21: 8 | E21: 9 | G21: 8 | J21: 7 | L21: 7 | O21: 8 | R21: 10 | S21: 9 | U21: 8 | Z21: 6 | AA21: 9 | AD21: 8 | AG21: 8 | AI21: 9 | AM21: 10 | AN21: 9 | AO21: 10 | AT21: 10 | AY21: 8 | BA21: 9 | BC21: 9 | BE21: 6 | BG21: 9 | BI21: 6 | BN21: 6 | BO21: 9 | BP21: 10 | BT21: 7 | BW21: 10 | CB21: 9 | CD21: 9 | CI21: 10 | CJ21: 8 | CK21: 8 | CU21: 10 | CV21: 8 | CX21: 9 | DB21: 9 | DC21: 10 | DH21: 9 | DJ21: 8 | DK21: 10 | DL21: 9 | DM21: 8 | DO21: 10 | DP21: 9 | DQ21: 10 | DR21: 8 | DS21: 9 | DU21: 10 | DV21: 8 | DX21: 9 | DZ21: 10 | EA21: 10 | EB21: 10 | EC21: 9 | EE21: 9 | EF21: 8 | EG21: 10 | EI21: 10 | EK21: 10 | EL21: 10 | EP21: 10 | EQ21: 10 | ER21: 10 | ET21: 8 | EW21: 10 | EX21: 9 | EZ21: 10 | FA21: 10 | FB21: 10 | FC21: 9 | FD21: 9 | FF21: 9 | FK21: 9 | FL21: 8 | FM21: 10 | FN21: 10 | FU21: 2216.81 | FV21: =IF(FX21 > 0,FW21/FX21,0) -> 8.923076923 | FW21: 696 | FX21: 78 | FY21: =MIN($C21:FT21) -> 6
A22: 9 | B22: Кристалинская Мария Валерьевна | D22: 8 | E22: 9 | G22: 9 | J22: 10 | L22: 7 | O22: 9 | R22: 10 | S22: 10 | U22: 8 | Z22: 9 | AA22: 9 | AD22: 8 | AG22: 9 | AM22: 9 | AN22: 9 | AO22: 10 | AP22: 10 | AT22: 10 | AY22: 9 | BA22: 9 | BE22: 8 | BG22: 9 | BI22: 8 | BN22: 8 | BO22: 9 | BP22: 10 | BT22: 8 | BW22: 8 | CB22: 9 | CD22: 7 | CI22: 10 | CJ22: 8 | CK22: 8 | CV22: 8 | CX22: 10 | DC22: 10 | DH22: 10 | DJ22: 8 | DK22: 10 | DL22: 9 | DM22: 10 | DP22: 9 | DQ22: 9 | DR22: 8 | DS22: 8 | DU22: 10 | DV22: 10 | DX22: 9 | DZ22: 7 | EA22: 8 | EB22: 10 | EC22: 10 | EE22: 9 | EF22: 8 | EG22: 9 | EK22: 10 | EL22: 10 | EP22: 10 | EQ22: 9 | ER22: 10 | ET22: 8 | EW22: 10 | EX22: 10 | EZ22: 10 | FB22: 9 | FC22: 9 | FD22: 9 | FF22: 8 | FH22: 10 | FK22: 10 | FL22: 9 | FM22: 10 | FN22: 10 | FU22: 2212.25 | FV22: =IF(FX22 > 0,FW22/FX22,0) -> 9.054794521 | FW22: 661 | FX22: 73 | FY22: =MIN($C22:FT22) -> 7
A23: 10 | B23: Бурмистрова Анастасия Денисовна | D23: 8 | E23: 8 | G23: 8 | J23: 8 | L23: 4 | O23: 8 | P23: 10 | R23: 10 | S23: 10 | U23: 8 | Z23: 6 | AA23: 9 | AD23: 9 | AG23: 8 | AM23: 9 | AN23: 9 | AO23: 10 | AP23: 9 | AT23: 10 | AY23: 9 | BA23: 9 | BC23: 9 | BE23: 8 | BG23: 9 | BI23: 10 | BN23: 6 | BO23: 9 | BP23: 10 | BT23: 8 | BW23: 9 | CB23: 7 | CD23: 10 | CI23: 9 | CJ23: 9 | CK23: 8 | CU23: 10 | CV23: 8 | CW23: 9 | DC23: 10 | DH23: 10 | DJ23: 8 | DK23: 8 | DL23: 8 | DM23: 10 | DO23: 10 | DP23: 8 | DQ23: 8 | DR23: 8 | DS23: 7 | DU23: 10 | DV23: 10 | DX23: 9 | DZ23: 9 | EA23: 10 | EB23: 9 | EC23: 9 | EE23: 10 | EF23: 8 | EG23: 8 | EI23: 9 | EL23: 10 | EN23: 10 | EP23: 10 | EQ23: 10 | ER23: 9 | ET23: 8 | EW23: 10 | EX23: 8 | EZ23: 10 | FB23: 8 | FC23: 7 | FD23: 9 | FF23: 8 | FH23: 9 | FK23: 7 | FL23: 9 | FM23: 10 | FN23: 10 | FU23: 2198.14 | FV23: =IF(FX23 > 0,FW23/FX23,0) -> 8.782051282 | FW23: 685 | FX23: 78 | FY23: =MIN($C23:FT23) -> 4
A24: 11 | B24: Ихно Дарья Сергеевна | D24: 7 | E24: 10 | G24: 10 | J24: 9 | L24: 10 | O24: 8 | R24: 10 | S24: 10 | U24: 8 | Z24: 10 | AA24: 9 | AD24: 8 | AG24: 7 | AK24: 9 | AM24: 9 | AN24: 9 | AO24: 10 | AT24: 9 | AY24: 9 | BA24: 9 | BC24: 10 | BE24: 8 | BG24: 9 | BI24: 9 | BN24: 8 | BO24: 10 | BP24: 10 | BT24: 8 | BW24: 8 | CB24: 8 | CD24: 7 | CI24: 10 | CJ24: 9 | CK24: 9 | CU24: 10 | CV24: 8 | CX24: 10 | DC24: 10 | DH24: 8 | DJ24: 9 | DK24: 10 | DL24: 9 | DM24: 10 | DP24: 10 | DQ24: 9 | DR24: 8 | DS24: 9 | DU24: 10 | DV24: 10 | DX24: 8 | DZ24: 10 | EA24: 10 | EB24: 8 | EC24: 9 | EE24: 10 | EF24: 8 | EG24: 8 | EH24: 10 | EL24: 10 | EP24: 10 | EQ24: 10 | ER24: 10 | ET24: 7 | EW24: 10 | EX24: 10 | EZ24: 10 | FB24: 7 | FC24: 8 | FD24: 10 | FF24: 9 | FG24: 10 | FK24: 8 | FL24: 8 | FM24: 10 | FN24: 10 | FU24: 2186.75 | FV24: =IF(FX24 > 0,FW24/FX24,0) -> 9.08 | FW24: 681 | FX24: 75 | FY24: =MIN($C24:FT24) -> 7
A25: 12 | B25: Фалькон Анастасия Александровна | D25: 8 | E25: 8 | G25: 8 | J25: 8 | L25: 4 | O25: 8 | R25: 10 | S25: 8 | U25: 8 | Z25: 6 | AA25: 10 | AD25: 8 | AG25: 8 | AH25: 8 | AI25: 8 | AM25: 8 | AN25: 8 | AO25: 10 | AT25: 7 | AY25: 8 | BA25: 8 | BC25: 9 | BE25: 8 | BG25: 9 | BI25: 8 | BN25: 5 | BO25: 8 | BP25: 10 | BT25: 7 | BW25: 8 | CB25: 7 | CC25: 9 | CD25: 8 | CI25: 10 | CJ25: 7 | CK25: 8 | CU25: 9 | CV25: 10 | CX25: 8 | CY25: 9 | DB25: 10 | DC25: 10 | DH25: 8 | DJ25: 8 | DK25: 8 | DL25: 9 | DM25: 8 | DO25: 8 | DP25: 9 | DQ25: 8 | DR25: 9 | DS25: 7 | DU25: 10 | DV25: 7 | DX25: 7 | DZ25: 10 | EA25: 8 | EB25: 9 | EC25: 10 | EE25: 10 | EF25: 7 | EG25: 8 | EI25: 8 | EK25: 8 | EL25: 9 | EM25: 9 | EP25: 10 | EQ25: 10 | ER25: 8 | ET25: 8 | EW25: 10 | EX25: 8 | EZ25: 10 | FA25: 10 | FB25: 9 | FC25: 10 | FD25: 10 | FF25: 7 | FK25: 8 | FL25: 10 | FM25: 8 | FN25: 10 | FU25: 2165.98 | FV25: =IF(FX25 > 0,FW25/FX25,0) -> 8.43902439 | FW25: 692 | FX25: 82 | FY25: =MIN($C25:FT25) -> 4
A26: 13 | B26: Самарина Евгения Олеговна | D26: 6 | E26: 8 | G26: 8 | J26: 9 | L26: 5 | O26: 9 | R26: 10 | S26: 8 | U26: 9 | Z26: 5 | AA26: 10 | AD26: 8 | AG26: 10 | AM26: 9 | AN26: 9 | AO26: 10 | AP26: 9 | AT26: 8 | AY26: 8 | BA26: 10 | BC26: 9 | BE26: 8 | BG26: 10 | BI26: 10 | BN26: 8 | BO26: 8 | BP26: 10 | BT26: 8 | BW26: 8 | CB26: 9 | CD26: 7 | CI26: 9 | CJ26: 8 | CK26: 9 | CU26: 9 | CV26: 8 | CW26: 10 | DB26: 10 | DC26: 10 | DH26: 7 | DJ26: 9 | DK26: 8 | DL26: 10 | DM26: 10 | DO26: 9 | DP26: 10 | DQ26: 8 | DR26: 8 | DS26: 8 | DU26: 10 | DV26: 10 | DX26: 7 | DZ26: 10 | EA26: 9 | EB26: 9 | EC26: 10 | EE26: 9 | EF26: 8 | EG26: 9 | EI26: 10 | EL26: 10 | EN26: 10 | EP26: 10 | EQ26: 10 | ER26: 9 | ET26: 7 | EW26: 10 | EX26: 9 | EZ26: 10 | FB26: 10 | FC26: 7 | FD26: 8 | FE26: 9 | FF26: 7 | FK26: 10 | FL26: 7 | FM26: 10 | FN26: 10 | FU26: 2162.99 | FV26: =IF(FX26 > 0,FW26/FX26,0) -> 8.807692308 | FW26: 687 | FX26: 78 | FY26: =MIN($C26:FT26) -> 5
A27: 14 | B27: Чумакова Инга Константиновна | D27: 8 | E27: 9 | G27: 8 | J27: 9 | L27: 8 | O27: 9 | R27: 10 | S27: 9 | U27: 9 | V27: 7 | Z27: 7 | AA27: 8 | AD27: 7 | AG27: 9 | AI27: 7 | AM27: 10 | AN27: 8 | AO27: 10 | AT27: 8 | AY27: 8 | BA27: 9 | BC27: 8 | BE27: 5 | BG27: 7 | BI27: 8 | BN27: 5 | BO27: 9 | BP27: 10 | BT27: 8 | BW27: 9 | CB27: 9 | CD27: 9 | CI27: 10 | CJ27: 8 | CK27: 8 | CU27: 8 | CV27: 6 | CX27: 9 | DB27: 8 | DC27: 10 | DH27: 10 | DJ27: 8 | DK27: 9 | DL27: 9 | DM27: 8 | DO27: 8 | DP27: 10 | DQ27: 8 | DR27: 8 | DS27: 9 | DU27: 10 | DV27: 8 | DX27: 8 | DZ27: 8 | EA27: 10 | EB27: 9 | EC27: 9 | EE27: 10 | EF27: 7 | EG27: 9 | EI27: 8 | EK27: 10 | EL27: 10 | EP27: 10 | EQ27: 9 | ER27: 10 | ET27: 8 | EW27: 10 | EX27: 8 | EZ27: 10 | FB27: 7 | FC27: 8 | FD27: 10 | FF27: 8 | FG27: 9 | FK27: 8 | FL27: 10 | FM27: 9 | FN27: 10 | FU27: 2155.03 | FV27: =IF(FX27 > 0,FW27/FX27,0) -> 8.582278481 | FW27: 678 | FX27: 79 | FY27: =MIN($C27:FT27) -> 5
A28: 15 | B28: Акумова Анна Дмитриевна | D28: 8 | E28: 8 | G28: 8 | J28: 9 | L28: 5 | O28: 8 | R28: 10 | S28: 9 | U28: 8 | Z28: 6 | AA28: 8 | AD28: 9 | AG28: 8 | AK28: 9 | AM28: 8 | AN28: 9 | AO28: 10 | AT28: 9 | AY28: 9 | BA28: 8 | BC28: 10 | BE28: 6 | BG28: 9 | BI28: 9 | BN28: 6 | BO28: 8 | BP28: 10 | BT28: 8 | BW28: 9 | CB28: 9 | CD28: 9 | CI28: 10 | CJ28: 8 | CK28: 9 | CU28: 10 | CV28: 6 | CW28: 9 | DB28: 9 | DC28: 10 | DH28: 10 | DJ28: 9 | DK28: 7 | DL28: 9 | DM28: 10 | DO28: 9 | DP28: 10 | DQ28: 7 | DR28: 8 | DS28: 9 | DU28: 10 | DV28: 10 | DX28: 7 | DZ28: 7 | EA28: 9 | EB28: 8 | EC28: 10 | EE28: 10 | EF28: 7 | EG28: 9 | EI28: 9 | EJ28: 8 | EK28: 10 | EP28: 10 | EQ28: 10 | ER28: 10 | ET28: 8 | EW28: 10 | EX28: 7 | EZ28: 10 | FB28: 7 | FC28: 10 | FD28: 10 | FF28: 8 | FG28: 9 | FK28: 7 | FL28: 10 | FM28: 9 | FN28: 10 | FU28: 2141.92 | FV28: =IF(FX28 > 0,FW28/FX28,0) -> 8.679487179 | FW28: 677 | FX28: 78 | FY28: =MIN($C28:FT28) -> 5
A29: 16 | B29: Ткачук Анфиса Сергеевна | D29: 6 | G29: 10 | J29: 7 | L29: 5 | O29: 9 | R29: 10 | S29: 7 | U29: 7 | Z29: 5 | AA29: 8 | AC29: 9 | AD29: 8 | AG29: 9 | AI29: 8 | AM29: 9 | AN29: 8 | AO29: 10 | AT29: 10 | AY29: 9 | BA29: 8 | BC29: 9 | BE29: 8 | BG29: 8 | BI29: 7 | BM29: 8 | BO29: 8 | BP29: 10 | BT29: 7 | BW29: 9 | BX29: 8 | CA29: 10 | CD29: 9 | CI29: 10 | CK29: 9 | CO29: 6 | CU29: 9 | CV29: 8 | CW29: 9 | DC29: 10 | DH29: 8 | DJ29: 8 | DK29: 9 | DL29: 8 | DM29: 10 | DP29: 7 | DQ29: 8 | DR29: 8 | DU29: 10 | DV29: 10 | DX29: 8 | EA29: 8 | EB29: 9 | EC29: 8 | ED29: 10 | EE29: 10 | EG29: 9 | EK29: 10 | EL29: 10 | EP29: 10 | EQ29: 10 | ER29: 9 | ET29: 9 | EW29: 10 | EX29: 6 | EZ29: 10 | FB29: 8 | FC29: 9 | FD29: 10 | FF29: 10 | FG29: 9 | FK29: 9 | FL29: 8 | FM29: 10 | FN29: 10 | FU29: 2093.52 | FV29: =IF(FX29 > 0,FW29/FX29,0) -> 8.635135135 | FW29: 639 | FX29: 74 | FY29: =MIN($C29:FT29) -> 5
A30: 17 | B30: Пенкина Анастасия Валерьевна | D30: 8 | G30: 9 | J30: 7 | L30: 8 | O30: 8 | R30: 10 | S30: 8 | U30: 8 | Z30: 8 | AA30: 9 | AC30: 10 | AD30: 8 | AG30: 9 | AK30: 9 | AM30: 9 | AN30: 9 | AO30: 10 | AT30: 9 | AY30: 9 | BA30: 9 | BE30: 8 | BG30: 9 | BI30: 5 | BM30: 10 | BO30: 9 | BP30: 10 | BT30: 7 | BW30: 9 | BX30: 10 | CA30: 6 | CD30: 7 | CI30: 9 | CK30: 9 | CO30: 8 | CV30: 7 | CX30: 9 | DC30: 10 | DH30: 8 | DJ30: 8 | DK30: 8 | DL30: 9 | DM30: 8 | DP30: 9 | DQ30: 7 | DR30: 8 | DU30: 10 | DV30: 9 | DX30: 6 | EA30: 8 | EB30: 9 | EC30: 10 | ED30: 10 | EE30: 9 | EG30: 10 | EJ30: 8 | EN30: 9 | EP30: 10 | EQ30: 10 | ER30: 7 | ET30: 9 | EW30: 10 | EX30: 9 | EZ30: 10 | FB30: 8 | FC30: 10 | FD30: 10 | FF30: 10 | FG30: 8 | FK30: 9 | FL30: 8 | FM30: 8 | FN30: 10 | FU30: 2090.44 | FV30: =IF(FX30 > 0,FW30/FX30,0) -> 8.680555556 | FW30: 625 | FX30: 72 | FY30: =MIN($C30:FT30) -> 5
A31: 18 | B31: Агрызкова Юлия Игоревна | D31: 8 | E31: 9 | G31: 9 | J31: 6 | L31: 6 | O31: 7 | R31: 10 | S31: 7 | U31: 8 | Z31: 6 | AA31: 8 | AD31: 5 | AG31: 8 | AM31: 9 | AN31: 9 | AO31: 10 | AP31: 9 | AT31: 9 | AY31: 6 | BA31: 8 | BC31: 8 | BE31: 7 | BG31: 8 | BI31: 4 | BN31: 7 | BO31: 8 | BP31: 10 | BT31: 6 | BW31: 8 | CB31: 9 | CD31: 10 | CI31: 9 | CJ31: 9 | CK31: 6 | CU31: 8 | CV31: 6 | CW31: 8 | DC31: 10 | DH31: 8 | DJ31: 9 | DK31: 10 | DL31: 9 | DM31: 8 | DO31: 8 | DP31: 8 | DQ31: 7 | DR31: 8 | DS31: 8 | DU31: 10 | DV31: 8 | DX31: 6 | DZ31: 9 | EA31: 7 | EB31: 9 | EC31: 9 | EE31: 10 | EF31: 7 | EG31: 8 | EI31: 8 | EL31: 9 | EN31: 8 | EP31: 10 | EQ31: 10 | ER31: 9 | ET31: 9 | EW31: 10 | EX31: 9 | EZ31: 10 | FB31: 9 | FC31: 8 | FD31: 10 | FF31: 8 | FH31: 10 | FK31: 10 | FL31: 10 | FM31: 10 | FN31: 10 | FU31: 2086.57 | FV31: =IF(FX31 > 0,FW31/FX31,0) -> 8.324675325 | FW31: 641 | FX31: 77 | FY31: =MIN($C31:FT31) -> 4
A32: 19 | B32: Юхим Оксана Михайловна | D32: 7 | E32: 8 | G32: 10 | J32: 9 | L32: 6 | O32: 8 | R32: 10 | S32: 9 | U32: 9 | Z32: 5 | AA32: 8 | AD32: 6 | AG32: 7 | AH32: 10 | AI32: 10 | AM32: 8 | AN32: 8 | AO32: 10 | AT32: 10 | AY32: 7 | BA32: 9 | BC32: 9 | BE32: 8 | BG32: 8 | BI32: 6 | BN32: 8 | BO32: 8 | BP32: 10 | BT32: 7 | BW32: 8 | CB32: 8 | CD32: 10 | CI32: 9 | CJ32: 8 | CK32: 8 | CU32: 9 | CV32: 7 | CX32: 9 | DB32: 9 | DC32: 10 | DH32: 10 | DJ32: 8 | DK32: 8 | DL32: 8 | DM32: 8 | DO32: 8 | DP32: 7 | DQ32: 8 | DR32: 9 | DS32: 8 | DU32: 10 | DV32: 9 | DX32: 6 | DZ32: 8 | EA32: 7 | EB32: 8 | EC32: 10 | EE32: 10 | EF32: 6 | EG32: 8 | EI32: 8 | EK32: 10 | EL32: 8 | EP32: 10 | EQ32: 10 | ER32: 9 | ET32: 7 | EW32: 9 | EX32: 8 | EZ32: 10 | FB32: 8 | FC32: 10 | FD32: 9 | FE32: 8 | FF32: 7 | FK32: 7 | FL32: 7 | FM32: 9 | FN32: 10 | FU32: 2085.34 | FV32: =IF(FX32 > 0,FW32/FX32,0) -> 8.367088608 | FW32: 661 | FX32: 79 | FY32: =MIN($C32:FT32) -> 5
A33: 20 | B33: Вергазова Анна Тимуровна | D33: 7 | E33: 6 | G33: 8 | J33: 10 | L33: 5 | O33: 8 | R33: 10 | S33: 8 | U33: 8 | Z33: 6 | AA33: 9 | AD33: 6 | AG33: 9 | AK33: 8 | AM33: 9 | AN33: 9 | AO33: 10 | AT33: 10 | AY33: 8 | BA33: 9 | BC33: 8 | BE33: 5 | BG33: 8 | BI33: 6 | BN33: 8 | BO33: 9 | BP33: 10 | BT33: 8 | BW33: 7 | CB33: 8 | CD33: 10 | CI33: 10 | CJ33: 7 | CK33: 8 | CU33: 7 | CV33: 8 | CX33: 7 | DC33: 10 | DH33: 9 | DJ33: 8 | DK33: 7 | DL33: 9 | DM33: 9 | DO33: 9 | DP33: 7 | DQ33: 7 | DR33: 8 | DS33: 9 | DU33: 10 | DV33: 10 | DX33: 7 | DZ33: 8 | EA33: 8 | EB33: 9 | EC33: 9 | EE33: 10 | EF33: 8 | EG33: 8 | EI33: 9 | EK33: 8 | EL33: 10 | EP33: 10 | EQ33: 10 | ER33: 6 | ET33: 9 | EW33: 9 | EX33: 6 | EZ33: 10 | FB33: 9 | FC33: 10 | FD33: 8 | FF33: 8 | FH33: 10 | FK33: 10 | FL33: 6 | FM33: 9 | FN33: 10 | FU33: 2077.35 | FV33: =IF(FX33 > 0,FW33/FX33,0) -> 8.350649351 | FW33: 643 | FX33: 77 | FY33: =MIN($C33:FT33) -> 5
A34: 21 | B34: Донцова Анна Юрьевна | D34: 8 | E34: 9 | G34: 8 | J34: 7 | L34: 5 | O34: 8 | R34: 10 | S34: 5 | U34: 8 | Z34: 7 | AA34: 9 | AD34: 7 | AG34: 8 | AH34: 8 | AM34: 8 | AN34: 9 | AO34: 10 | AP34: 8 | AT34: 10 | AY34: 7 | BA34: 6 | BC34: нет оценки | BE34: 8 | BG34: 9 | BI34: 10 | BN34: 6 | BO34: 8 | BP34: 10 | BT34: 6 | BW34: 7 | CB34: 9 | CD34: 8 | CI34: 8 | CJ34: 8 | CK34: 9 | CU34: 9 | CV34: 7 | CX34: 9 | DC34: 10 | DH34: 9 | DJ34: 9 | DK34: 8 | DL34: 9 | DM34: 9 | DO34: 9 | DP34: 7 | DQ34: 6 | DR34: 8 | DS34: 9 | DU34: 10 | DV34: 9 | DX34: 7 | DZ34: 10 | EA34: 7 | EB34: 8 | EC34: 8 | EE34: 8 | EF34: 6 | EG34: 9 | EI34: 9 | EJ34: 7 | EN34: 10 | EP34: 10 | EQ34: 8 | ER34: 9 | ET34: 8 | EW34: 10 | EX34: 9 | EZ34: 10 | FB34: 9 | FC34: 7 | FD34: 9 | FF34: 8 | FH34: 10 | FK34: 7 | FL34: 8 | FM34: 10 | FN34: 10 | FU34: 2072.36 | FV34: =IF(FX34 > 0,FW34/FX34,0) -> 8.298701299 | FW34: 639 | FX34: 77 | FY34: =MIN($C34:FT34) -> 5
A35: 22 | B35: Сорокина Мария Михайловна | D35: 8 | E35: 10 | G35: 9 | J35: 8 | L35: 5 | O35: 8 | R35: 10 | S35: 8 | U35: 8 | Z35: 6 | AA35: 8 | AD35: 7 | AG35: 10 | AH35: 7 | AM35: 8 | AN35: 8 | AO35: 10 | AP35: 10 | AT35: 10 | AY35: 7 | BA35: 8 | BE35: 6 | BG35: 4 | BI35: 6 | BN35: 6 | BO35: 8 | BP35: 10 | BT35: 7 | BW35: 5 | CB35: 8 | CD35: 10 | CI35: 8 | CJ35: 7 | CK35: 7 | CV35: 8 | CX35: 10 | DB35: 9 | DC35: 10 | DH35: 8 | DJ35: 9 | DK35: 9 | DL35: 9 | DM35: 8 | DP35: 9 | DQ35: 9 | DR35: 8 | DS35: 8 | DU35: 10 | DV35: 9 | DX35: 8 | DZ35: 9 | EA35: 6 | EB35: 9 | EC35: 8 | EE35: 8 | EF35: 9 | EG35: 9 | EJ35: 7 | EK35: 10 | EP35: 10 | EQ35: 9 | ER35: 9 | ET35: 8 | EW35: 10 | EX35: 8 | EZ35: 10 | FB35: 10 | FC35: 8 | FD35: 8 | FE35: 10 | FF35: 8 | FK35: 10 | FL35: 9 | FM35: 10 | FN35: 10 | FU35: 2061.07 | FV35: =IF(FX35 > 0,FW35/FX35,0) -> 8.373333333 | FW35: 628 | FX35: 75 | FY35: =MIN($C35:FT35) -> 4
A36: 23 | B36: Сарвина Наталья Александровна | D36: 7 | G36: 8 | J36: 5 | L36: 4 | O36: 9 | R36: 10 | S36: 8 | U36: 8 | Z36: 6 | AA36: 9 | AC36: 7 | AD36: 8 | AG36: 8 | AK36: 10 | AM36: 10 | AN36: 9 | AO36: 10 | AT36: 10 | AY36: 8 | BA36: 7 | BE36: 5 | BG36: 10 | BI36: 10 | BM36: 9 | BO36: 8 | BP36: 10 | BT36: 6 | BW36: 8 | BX36: 9 | CA36: 8 | CD36: 9 | CI36: 10 | CK36: 10 | CO36: 9 | CV36: 7 | CX36: 10 | DB36: 6 | DC36: 10 | DH36: 10 | DJ36: 9 | DK36: 10 | DL36: 10 | DM36: 8 | DP36: 7 | DQ36: 6 | DR36: 7 | DU36: 10 | DV36: 8 | DX36: 7 | EA36: 9 | EB36: 10 | EC36: 10 | ED36: 10 | EE36: 7 | EG36: 9 | EK36: 10 | EL36: 10 | EP36: 10 | EQ36: 7 | ER36: 10 | ET36: 9 | EW36: 9 | EX36: 6 | EZ36: 10 | FB36: 7 | FC36: 5 | FD36: 8 | FF36: 8 | FH36: 10 | FK36: 10 | FL36: 8 | FM36: 9 | FN36: 10 | FU36: 2052.24 | FV36: =IF(FX36 > 0,FW36/FX36,0) -> 8.465753425 | FW36: 618 | FX36: 73 | FY36: =MIN($C36:FT36) -> 4
A37: 24 | B37: Кудряшова Юлия Ивановна | D37: 8 | E37: 7 | G37: 8 | J37: 7 | L37: 5 | O37: 8 | R37: 10 | S37: 5 | U37: 8 | Z37: 6 | AA37: 10 | AD37: 4 | AG37: 7 | AH37: 9 | AI37: 9 | AM37: 7 | AN37: 8 | AO37: 10 | AT37: 9 | AY37: 7 | BA37: 8 | BC37: 8 | BE37: 5 | BG37: 10 | BI37: 7 | BN37: 8 | BO37: 9 | BP37: 10 | BT37: 7 | BW37: 9 | CB37: 8 | CD37: 10 | CI37: 9 | CJ37: 9 | CK37: 8 | CU37: 8 | CV37: 6 | CW37: 8 | DB37: 9 | DC37: 10 | DH37: 9 | DJ37: 9 | DK37: 10 | DL37: 8 | DM37: 7 | DO37: 7 | DP37: 10 | DQ37: 6 | DR37: 8 | DS37: 9 | DU37: 10 | DV37: 6 | DX37: 6 | DZ37: 7 | EA37: 8 | EB37: 9 | EC37: 8 | EE37: 10 | EF37: 7 | EG37: 8 | EI37: 8 | EK37: 7 | EL37: 9 | EP37: 10 | EQ37: 10 | ER37: 8 | ET37: 8 | EW37: 10 | EX37: 8 | EZ37: 10 | FB37: 8 | FC37: 7 | FD37: 8 | FF37: 7 | FH37: 10 | FK37: 9 | FL37: 9 | FM37: 10 | FN37: 10 | FU37: 2038.29 | FV37: =IF(FX37 > 0,FW37/FX37,0) -> 8.17721519 | FW37: 646 | FX37: 79 | FY37: =MIN($C37:FT37) -> 4
A38: 25 | B38: Калачина Анна Андреевна | D38: 7 | G38: 7 | J38: 8 | L38: 5 | O38: 8 | R38: 10 | S38: 8 | U38: 7 | Z38: 7 | AA38: 8 | AC38: 7 | AD38: 5 | AG38: 9 | AH38: 7 | AK38: 8 | AM38: 10 | AN38: 8 | AO38: 10 | AT38: 7 | AY38: 9 | BA38: 9 | BC38: 7 | BE38: 4 | BG38: 9 | BI38: 4 | BM38: 8 | BO38: 8 | BP38: 10 | BT38: 7 | BW38: 8 | BX38: 10 | CA38: 8 | CD38: 9 | CI38: 6 | CK38: 9 | CO38: 8 | CU38: 7 | CV38: 6 | CX38: 9 | DB38: 6 | DC38: 10 | DH38: 10 | DJ38: 10 | DK38: 8 | DL38: 9 | DM38: 7 | DO38: 6 | DP38: 9 | DQ38: 6 | DR38: 6 | DU38: 10 | DV38: 9 | DX38: 6 | EA38: 8 | EB38: 8 | EC38: 10 | ED38: 9 | EE38: 10 | EG38: 9 | EH38: 10 | EI38: 7 | EL38: 9 | EP38: 10 | EQ38: 8 | ER38: 8 | ET38: 10 | EW38: 10 | EX38: 5 | EZ38: 10 | FB38: 7 | FC38: 9 | FD38: 10 | FF38: 7 | FG38: 9 | FK38: 10 | FL38: 7 | FM38: 9 | FN38: 10 | FU38: 2012.03 | FV38: =IF(FX38 > 0,FW38/FX38,0) -> 8.102564103 | FW38: 632 | FX38: 78 | FY38: =MIN($C38:FT38) -> 4
A39: 26 | B39: Мирошкина Дарья Александровна | D39: 8 | E39: 9 | G39: 7 | J39: 6 | L39: 5 | O39: 8 | R39: 10 | S39: 7 | U39: 8 | Z39: 8 | AA39: 9 | AD39: 7 | AG39: 10 | AH39: 8 | AI39: 8 | AM39: 8 | AN39: 9 | AO39: 10 | AT39: 8 | AY39: 7 | BA39: 7 | BC39: 9 | BE39: 8 | BG39: 9 | BI39: 4 | BN39: 5 | BO39: 8 | BP39: 10 | BT39: 6 | BW39: 8 | CB39: 9 | CD39: 9 | CI39: 10 | CJ39: 8 | CK39: 6 | CU39: 9 | CV39: 8 | CX39: 10 | DB39: 9 | DC39: 10 | DH39: 9 | DJ39: 8 | DK39: 9 | DL39: 8 | DM39: 6 | DP39: 10 | DQ39: 9 | DR39: 7 | DS39: 9 | DU39: 10 | DV39: 6 | DX39: 9 | DZ39: 9 | EA39: 10 | EB39: 9 | EC39: 8 | EE39: 9 | EF39: 8 | EG39: 8 | EL39: 9 | EN39: 10 | EP39: 10 | EQ39: 10 | ER39: 6 | ET39: 9 | EW39: 9 | EX39: 4 | EZ39: 10 | FB39: 9 | FC39: 6 | FD39: 7 | FF39: 4 | FH39: 10 | FK39: 8 | FL39: 9 | FM39: 10 | FN39: 10 | FU39: 2010.16 | FV39: =IF(FX39 > 0,FW39/FX39,0) -> 8.220779221 | FW39: 633 | FX39: 77 | FY39: =MIN($C39:FT39) -> 4
A40: 27 | B40: Лукьянов Алексей Константинович | C40: 9 | D40: 8 | G40: 8 | J40: 6 | L40: 5 | O40: 8 | R40: 10 | S40: 6 | U40: 8 | Z40: 4 | AA40: 8 | AC40: 6 | AD40: 7 | AG40: 7 | AK40: 9 | AM40: 8 | AN40: 7 | AO40: 10 | AT40: 8 | AY40: 8 | BA40: 9 | BC40: 7 | BE40: 6 | BG40: 9 | BI40: 4 | BM40: 10 | BO40: 8 | BP40: 10 | BT40: 7 | BW40: 7 | BX40: 9 | CA40: 10 | CD40: 7 | CI40: 8 | CK40: 9 | CO40: 8 | CU40: 7 | CV40: 7 | CW40: 10 | DC40: 10 | DH40: 8 | DJ40: 8 | DK40: 7 | DL40: 8 | DM40: 8 | DO40: 6 | DP40: 9 | DQ40: 6 | DR40: 8 | DU40: 10 | DV40: 8 | DX40: 7 | EA40: 9 | EB40: 8 | EC40: 7 | ED40: 10 | EE40: 10 | EG40: 8 | EI40: 8 | EK40: 10 | EL40: 10 | EP40: 10 | EQ40: 10 | ER40: 10 | ET40: 9 | EW40: 9 | EX40: 10 | EZ40: 10 | FB40: 7 | FC40: 9 | FD40: 10 | FF40: 8 | FG40: 8 | FK40: 7 | FL40: 7 | FM40: 8 | FN40: 10 | FU40: 2003.02 | FV40: =IF(FX40 > 0,FW40/FX40,0) -> 8.142857143 | FW40: 627 | FX40: 77 | FY40: =MIN($C40:FT40) -> 4
A41: 28 | B41: Федотова Елена Андреевна | D41: 8 | G41: 8 | J41: 8 | L41: 6 | O41: 7 | R41: 10 | S41: 8 | U41: 7 | Z41: 4 | AA41: 9 | AC41: 5 | AD41: 5 | AG41: 9 | AH41: 10 | AI41: 10 | AM41: 9 | AN41: 7 | AO41: 10 | AT41: 10 | AY41: 5 | BA41: 8 | BE41: 6 | BG41: 7 | BI41: 5 | BM41: 10 | BO41: 7 | BP41: 10 | BT41: 8 | BW41: 7 | BX41: 9 | CA41: 7 | CD41: 9 | CI41: 6 | CK41: 8 | CO41: 6 | CV41: 7 | CX41: 9 | DB41: 10 | DC41: 10 | DH41: 9 | DJ41: 8 | DK41: 9 | DL41: 8 | DM41: 8 | DP41: 9 | DQ41: 7 | DR41: 8 | DU41: 10 | DV41: 8 | DX41: 7 | EA41: 8 | EB41: 10 | EC41: 9 | ED41: 10 | EE41: 10 | EG41: 9 | EJ41: 7 | EM41: 7 | EN41: 10 | EP41: 10 | EQ41: 10 | ER41: 7 | ET41: 9 | EW41: 9 | EX41: 6 | EZ41: 10 | FB41: 9 | FC41: 9 | FD41: 9 | FF41: 6 | FG41: 8 | FK41: 9 | FL41: 10 | FM41: 10 | FN41: 10 | FU41: 1994.46 | FV41: =IF(FX41 > 0,FW41/FX41,0) -> 8.213333333 | FW41: 616 | FX41: 75 | FY41: =MIN($C41:FT41) -> 4
A42: 29 | B42: Рыхлик Наталья Николаевна | D42: 8 | G42: 9 | J42: 4 | L42: 5 | O42: 9 | R42: 10 | S42: 5 | U42: 8 | Z42: 5 | AA42: 9 | AC42: 7 | AD42: 7 | AG42: 8 | AH42: 9 | AI42: 9 | AM42: 9 | AN42: 8 | AO42: 10 | AT42: 9 | AY42: 9 | BA42: 6 | BE42: 7 | BG42: 9 | BI42: 7 | BM42: 8 | BO42: 9 | BP42: 10 | BT42: 5 | BW42: 7 | BX42: 8 | CA42: 8 | CD42: 8 | CI42: 4 | CK42: 7 | CO42: 6 | CV42: 6 | CX42: 8 | DB42: 8 | DC42: 10 | DH42: 8 | DJ42: 8 | DK42: 7 | DL42: 8 | DM42: 7 | DP42: 8 | DQ42: 8 | DR42: 8 | DU42: 10 | DV42: 7 | DX42: 8 | EA42: 9 | EB42: 8 | EC42: 10 | ED42: 10 | EE42: 10 | EG42: 8 | EK42: 10 | EL42: 10 | EP42: 10 | EQ42: 9 | ER42: 8 | ET42: 10 | EW42: 9 | EX42: 6 | EZ42: 10 | FB42: 8 | FC42: 7 | FD42: 9 | FF42: 10 | FG42: 10 | FK42: 8 | FL42: 8 | FM42: 9 | FN42: 10 | FU42: 1983.03 | FV42: =IF(FX42 > 0,FW42/FX42,0) -> 8.121621622 | FW42: 601 | FX42: 74 | FY42: =MIN($C42:FT42) -> 4
A43: 30 | B43: Романова Юлия Владимировна | D43: 7 | G43: 6 | J43: 8 | L43: 8 | O43: 8 | R43: 10 | S43: 7 | U43: 8 | Z43: 8 | AA43: 10 | AC43: 8 | AD43: 6 | AG43: 7 | AK43: 9 | AM43: 9 | AN43: 8 | AO43: 10 | AT43: 10 | AY43: 6 | BA43: 7 | BE43: 8 | BG43: 9 | BI43: 4 | BM43: 6 | BO43: 8 | BP43: 10 | BT43: 6 | BW43: 9 | BX43: 8 | CA43: 5 | CD43: 9 | CI43: 6 | CK43: 9 | CO43: 7 | CV43: 4 | CW43: 10 | DB43: 7 | DC43: 10 | DH43: 10 | DJ43: 9 | DK43: 7 | DL43: 8 | DM43: 8 | DP43: 9 | DQ43: 8 | DR43: 8 | DU43: 10 | DV43: 8 | DX43: 7 | EA43: 6 | EB43: 10 | EC43: 7 | ED43: 9 | EE43: 9 | EG43: 9 | EH43: 10 | EJ43: 8 | EP43: 10 | EQ43: 9 | ER43: 10 | ET43: 9 | EW43: 9 | EX43: 6 | EZ43: 10 | FB43: 9 | FC43: 7 | FD43: 9 | FF43: 8 | FG43: 10 | FK43: 7 | FL43: 10 | FM43: 10 | FN43: 10 | FU43: 1982.06 | FV43: =IF(FX43 > 0,FW43/FX43,0) -> 8.191780822 | FW43: 598 | FX43: 73 | FY43: =MIN($C43:FT43) -> 4
A44: 31 | B44: Полибенцева Анна Владимировна | D44: 8 | G44: 8 | J44: 7 | L44: 4 | O44: 9 | R44: 10 | S44: 8 | U44: 8 | Z44: 5 | AA44: 9 | AC44: 9 | AD44: 7 | AG44: 9 | AH44: 7 | AI44: 7 | AM44: 8 | AN44: 8 | AO44: 10 | AT44: 10 | AY44: 8 | BA44: 7 | BC44: 8 | BE44: 5 | BG44: 9 | BI44: 4 | BM44: 9 | BO44: 9 | BP44: 10 | BT44: 6 | BW44: 6 | BX44: 8 | CA44: 4 | CD44: 6 | CI44: 9 | CK44: 7 | CO44: 7 | CU44: 8 | CV44: 6 | CW44: 8 | DB44: 5 | DC44: 10 | DH44: 9 | DJ44: 9 | DK44: 8 | DL44: 8 | DM44: 8 | DP44: 8 | DQ44: 9 | DR44: 8 | DU44: 10 | DV44: 8 | DX44: 8 | EA44: 7 | EB44: 10 | EC44: 9 | ED44: 9 | EE44: 8 | EG44: 8 | EH44: 9 | EL44: 9 | EP44: 10 | EQ44: 9 | ER44: 10 | ET44: 9 | EW44: 10 | EX44: 8 | EZ44: 10 | FB44: 9 | FC44: 8 | FD44: 9 | FF44: 8 | FG44: 8 | FK44: 8 | FL44: 7 | FM44: 10 | FN44: 10 | FU44: 1980.86 | FV44: =IF(FX44 > 0,FW44/FX44,0) -> 8.092105263 | FW44: 615 | FX44: 76 | FY44: =MIN($C44:FT44) -> 4
A45: 32 | B45: Носик Виктория Павловна | D45: 7 | G45: 7 | J45: 9 | L45: 5 | O45: 8 | R45: 10 | S45: 9 | U45: 8 | Z45: 7 | AA45: 8 | AC45: 8 | AD45: 9 | AG45: 9 | AI45: 8 | AM45: 8 | AN45: 9 | AO45: 10 | AT45: 8 | AY45: 7 | BA45: 9 | BE45: 8 | BG45: 8 | BI45: 5 | BM45: 8 | BO45: 8 | BP45: 10 | BT45: 8 | BW45: 9 | BX45: 8 | CA45: 10 | CD45: 9 | CI45: 10 | CK45: 7 | CO45: 7 | CV45: 7 | CX45: 9 | DC45: 10 | DH45: 10 | DJ45: 8 | DK45: 6 | DL45: 10 | DM45: 10 | DP45: 7 | DQ45: 7 | DR45: 7 | DU45: 10 | DV45: 10 | DX45: 6 | EA45: 9 | EB45: 6 | EC45: 8 | ED45: 8 | EE45: 10 | EG45: 8 | EL45: 9 | EN45: 8 | EP45: 10 | EQ45: 9 | ER45: 7 | ET45: 9 | EW45: 9 | EX45: 5 | EZ45: 10 | FB45: 7 | FC45: 9 | FD45: 10 | FF45: 7 | FG45: 8 | FK45: 6 | FL45: 7 | FM45: 8 | FN45: 10 | FU45: 1978.18 | FV45: =IF(FX45 > 0,FW45/FX45,0) -> 8.222222222 | FW45: 592 | FX45: 72 | FY45: =MIN($C45:FT45) -> 5
A46: 33 | B46: Понтус Юлия Игоревна | D46: 7 | G46: 9 | J46: 6 | L46: 6 | O46: 8 | R46: 10 | S46: 7 | U46: 7 | Z46: 7 | AA46: 10 | AC46: 8 | AD46: 7 | AG46: 6 | AH46: 9 | AI46: 9 | AM46: 8 | AN46: 8 | AO46: 10 | AT46: 9 | AY46: 8 | BA46: 7 | BE46: 8 | BG46: 10 | BI46: 8 | BM46: 7 | BO46: 7 | BP46: 10 | BT46: 6 | BW46: 9 | BX46: 7 | CA46: 10 | CD46: 9 | CI46: 8 | CK46: 6 | CO46: 8 | CV46: 7 | CX46: 10 | DB46: 8 | DC46: 10 | DH46: 10 | DJ46: 8 | DK46: 8 | DL46: 8 | DM46: 8 | DP46: 8 | DQ46: 7 | DR46: 7 | DU46: 10 | DV46: 8 | DX46: 5 | EA46: 7 | EB46: 6 | EC46: 7 | ED46: 6 | EE46: 10 | EG46: 9 | EK46: 7 | EL46: 8 | EP46: 10 | EQ46: 9 | ER46: 8 | ET46: 9 | EW46: 9 | EX46: 6 | EZ46: 10 | FB46: 9 | FC46: 7 | FD46: 9 | FF46: 8 | FH46: 10 | FK46: 6 | FL46: 9 | FM46: 8 | FN46: 10 | FU46: 1973.35 | FV46: =IF(FX46 > 0,FW46/FX46,0) -> 8.081081081 | FW46: 598 | FX46: 74 | FY46: =MIN($C46:FT46) -> 5
A47: 34 | B47: Бабаянц Виолетта Владимировна | D47: 7 | E47: 5 | G47: 7 | J47: 6 | L47: 7 | O47: 9 | R47: 10 | S47: 7 | U47: 9 | Z47: 4 | AA47: 8 | AD47: 4 | AG47: 8 | AM47: 8 | AN47: 9 | AO47: 10 | AP47: 9 | AT47: 8 | AY47: 5 | BA47: 8 | BE47: 5 | BG47: 8 | BI47: 7 | BN47: 5 | BO47: 9 | BP47: 10 | BT47: 6 | BW47: 9 | CB47: 8 | CD47: 9 | CI47: 8 | CJ47: 7 | CK47: 7 | CV47: 6 | CX47: 9 | DC47: 10 | DH47: 8 | DJ47: 7 | DK47: 9 | DL47: 8 | DM47: 8 | DP47: 8 | DQ47: 6 | DR47: 8 | DS47: 8 | DU47: 10 | DV47: 8 | DX47: 7 | DZ47: 9 | EA47: 8 | EB47: 9 | EC47: 9 | EE47: 9 | EF47: 8 | EG47: 8 | EK47: 10 | EL47: 10 | EP47: 10 | EQ47: 10 | ER47: 9 | ET47: 8 | EW47: 10 | EX47: 8 | EZ47: 10 | FB47: 9 | FC47: 7 | FD47: 10 | FE47: 10 | FF47: 9 | FK47: 10 | FL47: 10 | FM47: 8 | FN47: 10 | FU47: 1966.88 | FV47: =IF(FX47 > 0,FW47/FX47,0) -> 8.136986301 | FW47: 594 | FX47: 73 | FY47: =MIN($C47:FT47) -> 4
A48: 35 | B48: Николаева Ирина Александровна | D48: 9 | F48: 7 | H48: 6 | I48: 8 | K48: 8 | M48: 7 | O48: 10 | R48: 10 | T48: 8 | U48: 9 | Y48: 6 | AA48: 10 | AC48: 4 | AD48: 6 | AF48: 7 | AJ48: 6 | AL48: 7 | AN48: 9 | AO48: 10 | AT48: 8 | AY48: 6 | BB48: 8 | BF48: 4 | BG48: 7 | BJ48: 5 | BL48: 5 | BO48: 7 | BP48: 10 | BU48: 7 | BW48: 10 | BZ48: 6 | CA48: 6 | CD48: 10 | CH48: 5 | CM48: 8 | CP48: 4 | CV48: 10 | DC48: 10 | DG48: 7 | DH48: 9 | DI48: 8 | DJ48: 8 | DK48: 6 | DL48: 7 | DN48: 9 | DP48: 8 | DR48: 7 | DT48: 10 | DW48: 9 | DY48: 8 | EA48: 8 | EB48: 6 | EC48: 9 | ED48: 10 | EE48: 10 | EG48: 9 | EK48: 8 | EL48: 10 | EO48: 10 | EQ48: 8 | ER48: 7 | ET48: 8 | EW48: 8 | EX48: 5 | EZ48: 10 | FB48: 7 | FC48: 9 | FD48: 9 | FE48: 8 | FF48: 6 | FK48: 7 | FL48: 8 | FM48: 8 | FN48: 10 | FU48: 1945.82 | FV48: =IF(FX48 > 0,FW48/FX48,0) -> 7.797297297 | FW48: 577 | FX48: 74 | FY48: =MIN($C48:FT48) -> 4
A49: 36 | B49: Нагдалиева Злата Фархадовна | D49: 7 | G49: 5 | J49: 8 | L49: 8 | O49: 8 | R49: 10 | S49: 8 | U49: 9 | Z49: 5 | AA49: 9 | AC49: 7 | AD49: 5 | AG49: 7 | AI49: 10 | AM49: 9 | AN49: 8 | AO49: 10 | AT49: 10 | AY49: 7 | BA49: 9 | BC49: 7 | BE49: 4 | BG49: 7 | BI49: 4 | BM49: 8 | BO49: 7 | BP49: 10 | BT49: 8 | BW49: 8 | BX49: 6 | CA49: 10 | CD49: 10 | CI49: 9 | CK49: 9 | CO49: 7 | CU49: 7 | CV49: 7 | CW49: 8 | DB49: 7 | DC49: 10 | DH49: 9 | DJ49: 7 | DK49: 6 | DL49: 8 | DM49: 10 | DP49: 7 | DQ49: 8 | DR49: 7 | DU49: 10 | DV49: 10 | DX49: 7 | EA49: 9 | EB49: 9 | EC49: 9 | ED49: 9 | EE49: 9 | EG49: 8 | EL49: 8 | EN49: 9 | EP49: 10 | EQ49: 9 | ER49: 7 | ET49: 9 | EW49: 8 | EX49: 6 | EZ49: 10 | FB49: 7 | FC49: 6 | FD49: 10 | FF49: 8 | FG49: 8 | FK49: 8 | FL49: 10 | FM49: 8 | FN49: 10 | FU49: 1934.83 | FV49: =IF(FX49 > 0,FW49/FX49,0) -> 8.066666667 | FW49: 605 | FX49: 75 | FY49: =MIN($C49:FT49) -> 4
A50: 37 | B50: Зиятдинова Раина Рамилевна | O50: 8 | AA50: 8 | AB50: 9 | AN50: 9 | AQ50: 8 | AR50: 9 | AT50: 5 | AV50: 8 | AW50: 5 | AX50: 6 | AZ50: 7 | BA50: 7 | BD50: 7 | BG50: 5 | BH50: 7 | BJ50: 5 | BK50: 8 | BO50: 7 | BP50: 10 | BQ50: 10 | BS50: 5 | BT50: 7 | BV50: 10 | BW50: 4 | BY50: 7 | CA50: 6 | CD50: 9 | CG50: 10 | CI50: 6 | CL50: 9 | CN50: 9 | CO50: 9 | CQ50: 8 | CS50: 6 | CV50: 10 | CW50: 7 | CZ50: 8 | DA50: 8 | DB50: 7 | DC50: 10 | DD50: 10 | DF50: 9 | DH50: 7 | DJ50: 9 | DK50: 8 | DL50: 9 | DM50: 6 | DP50: 6 | DQ50: 7 | DR50: 8 | DU50: 10 | DV50: 7 | DX50: 6 | EB50: 8 | EC50: 8 | ED50: 9 | EE50: 10 | EG50: 8 | EK50: 8 | EL50: 10 | EM50: 7 | EP50: 10 | EQ50: 9 | ER50: 8 | ET50: 10 | EW50: 8 | EX50: 5 | EZ50: 10 | FB50: 6 | FC50: 7 | FD50: 9 | FF50: 6 | FG50: 10 | FK50: 7 | FL50: 10 | FM50: 9 | FN50: 10 | FU50: 1934.54 | FV50: =IF(FX50 > 0,FW50/FX50,0) -> 7.883116883 | FW50: 607 | FX50: 77 | FY50: =MIN($C50:FT50) -> 4
A51: 38 | B51: Дюкарева Мария Юрьевна | D51: 7 | G51: 7 | J51: 5 | L51: 4 | O51: 7 | R51: 10 | S51: 6 | U51: 7 | V51: 8 | Z51: 4 | AA51: 9 | AC51: 8 | AD51: 4 | AG51: 4 | AK51: 7 | AM51: 9 | AN51: 6 | AO51: 10 | AT51: 9 | AY51: 7 | BA51: 7 | BC51: 7 | BE51: 5 | BG51: 9 | BI51: 5 | BM51: 10 | BO51: 7 | BP51: 10 | BT51: 6 | BW51: 8 | BX51: 8 | CA51: 5 | CD51: 8 | CI51: 6 | CK51: 7 | CO51: 7 | CU51: 7 | CV51: 5 | CW51: 7 | DC51: 10 | DH51: 8 | DJ51: 8 | DK51: 7 | DL51: 8 | DM51: 8 | DO51: 8 | DP51: 8 | DQ51: 7 | DR51: 8 | DU51: 10 | DV51: 8 | DX51: 7 | EA51: 6 | EB51: 10 | EC51: 9 | ED51: 9 | EE51: 8 | EG51: 8 | EI51: 8 | EJ51: 7 | EK51: 10 | EP51: 10 | EQ51: 10 | ER51: 7 | ET51: 10 | EW51: 9 | EX51: 8 | EZ51: 10 | FA51: 9 | FB51: 7 | FC51: 9 | FD51: 10 | FF51: 8 | FG51: 9 | FK51: 7 | FL51: 8 | FM51: 9 | FN51: 10 | FU51: 1910.04 | FV51: =IF(FX51 > 0,FW51/FX51,0) -> 7.717948718 | FW51: 602 | FX51: 78 | FY51: =MIN($C51:FT51) -> 4
A52: 39 | B52: Соловьева Маргарита Владимировна | D52: 6 | E52: 7 | G52: 9 | J52: 7 | L52: 7 | O52: 7 | R52: 10 | S52: 7 | U52: 7 | Z52: 5 | AA52: 9 | AD52: 4 | AG52: 8 | AI52: 10 | AM52: 8 | AN52: 8 | AO52: 10 | AT52: 10 | AY52: 5 | BA52: 7 | BC52: 7 | BE52: 8 | BG52: 8 | BI52: 5 | BN52: 6 | BO52: 7 | BP52: 10 | BT52: 7 | BW52: 7 | CB52: 9 | CD52: 8 | CI52: 8 | CJ52: 7 | CK52: 6 | CU52: 8 | CV52: 4 | CX52: 10 | DB52: 10 | DC52: 10 | DH52: 8 | DJ52: 8 | DK52: 9 | DL52: 7 | DM52: 7 | DO52: 8 | DP52: 8 | DQ52: 8 | DR52: 7 | DS52: 7 | DU52: 10 | DV52: 8 | DX52: 8 | DZ52: 7 | EA52: 7 | EB52: 8 | EC52: 9 | EE52: 10 | EF52: 6 | EG52: 8 | EI52: 6 | EL52: 10 | EN52: 8 | EP52: 10 | EQ52: 10 | ER52: 6 | ET52: 7 | EW52: 9 | EX52: 5 | EZ52: 10 | FB52: 7 | FC52: 8 | FD52: 9 | FF52: 6 | FH52: 10 | FK52: 8 | FL52: 8 | FM52: 9 | FN52: 10 | FU52: 1905.45 | FV52: =IF(FX52 > 0,FW52/FX52,0) -> 7.820512821 | FW52: 610 | FX52: 78 | FY52: =MIN($C52:FT52) -> 4
A53: 40 | B53: Асекритова Екатерина Александровна | D53: 7 | E53: 6 | G53: 8 | J53: 8 | L53: 8 | O53: 8 | R53: 10 | S53: 9 | U53: 6 | Z53: 6 | AA53: 8 | AD53: 5 | AG53: 10 | AH53: 8 | AI53: 8 | AM53: 7 | AN53: 8 | AO53: 10 | AT53: 9 | AY53: 5 | BA53: 8 | BC53: 7 | BE53: 4 | BG53: 9 | BI53: 5 | BN53: 6 | BO53: 7 | BP53: 10 | BT53: 7 | BW53: 8 | CB53: 8 | CD53: 10 | CI53: 7 | CJ53: 7 | CK53: 7 | CU53: 4 | CV53: 4 | CX53: 9 | DB53: 8 | DC53: 10 | DH53: 8 | DJ53: 8 | DK53: 8 | DL53: 7 | DM53: 9 | DP53: 7 | DQ53: 8 | DR53: 9 | DS53: 8 | DU53: 10 | DV53: 9 | DX53: 6 | DZ53: 9 | EA53: 6 | EB53: 9 | EC53: 9 | EE53: 6 | EF53: 7 | EG53: 9 | EH53: 10 | EJ53: 8 | EP53: 10 | EQ53: 10 | ER53: 9 | ET53: 7 | EW53: 9 | EX53: 5 | EZ53: 10 | FB53: 8 | FC53: 10 | FD53: 8 | FF53: 8 | FH53: 10 | FK53: 7 | FL53: 5 | FM53: 10 | FN53: 10 | FU53: 1894.36 | FV53: =IF(FX53 > 0,FW53/FX53,0) -> 7.857142857 | FW53: 605 | FX53: 77 | FY53: =MIN($C53:FT53) -> 4
A54: 41 | B54: Кардаш Матвей Борисович | D54: 7 | E54: 8 | G54: 6 | J54: 6 | L54: 6 | O54: 7 | R54: 10 | S54: 10 | U54: 7 | Z54: 4 | AA54: 8 | AD54: 4 | AG54: 7 | AH54: 10 | AI54: 10 | AM54: 7 | AN54: 8 | AO54: 10 | AT54: 9 | AY54: 5 | BA54: 8 | BC54: 6 | BE54: 5 | BG54: 6 | BI54: 4 | BN54: 5 | BO54: 6 | BP54: 10 | BT54: 6 | BW54: 7 | CB54: 7 | CD54: 8 | CI54: 9 | CJ54: 7 | CK54: 7 | CU54: 6 | CV54: 6 | CW54: 8 | DC54: 10 | DH54: 10 | DJ54: 8 | DK54: 8 | DL54: 8 | DM54: 7 | DP54: 8 | DQ54: 5 | DR54: 7 | DS54: 8 | DU54: 10 | DV54: 7 | DX54: 5 | DZ54: 7 | EA54: 8 | EB54: 6 | EC54: 8 | EE54: 10 | EF54: 6 | EG54: 8 | EK54: 10 | EL54: 9 | EP54: 10 | EQ54: 10 | ER54: 9 | ET54: 9 | EW54: 9 | EX54: 8 | EZ54: 10 | FB54: 9 | FC54: 8 | FD54: 9 | FE54: 8 | FF54: 7 | FK54: 7 | FL54: 10 | FM54: 10 | FN54: 10 | FU54: 1889.54 | FV54: =IF(FX54 > 0,FW54/FX54,0) -> 7.710526316 | FW54: 586 | FX54: 76 | FY54: =MIN($C54:FT54) -> 4
A55: 42 | B55: Максимов Егор Игоревич | D55: 8 | E55: 8 | G55: 8 | J55: 8 | L55: 6 | O55: 9 | R55: 10 | S55: 7 | U55: 9 | Z55: 6 | AA55: 9 | AD55: 6 | AG55: 9 | AH55: 8 | AI55: 8 | AM55: 8 | AN55: 8 | AO55: 10 | AT55: 9 | AY55: 4 | BA55: 5 | BE55: 5 | BG55: 7 | BI55: 4 | BN55: 6 | BO55: 7 | BP55: 10 | BT55: 6 | BW55: 8 | CB55: 8 | CD55: 9 | CI55: 10 | CJ55: 7 | CK55: 6 | CV55: 7 | CW55: 6 | DC55: 10 | DH55: 10 | DJ55: 8 | DK55: 7 | DL55: 7 | DM55: 9 | DP55: 7 | DQ55: 7 | DR55: 7 | DS55: 8 | DU55: 10 | DV55: 7 | DX55: 5 | DZ55: 6 | EA55: 6 | EB55: 5 | EC55: 7 | EE55: 9 | EF55: 5 | EG55: 8 | EH55: 9 | EL55: 5 | EP55: 10 | EQ55: 9 | ER55: 9 | ET55: 9 | EW55: 9 | EX55: 5 | EZ55: 10 | FB55: 8 | FC55: 8 | FD55: 9 | FE55: 8 | FF55: 5 | FK55: 9 | FL55: 7 | FM55: 9 | FN55: 10 | FU55: 1883.72 | FV55: =IF(FX55 > 0,FW55/FX55,0) -> 7.635135135 | FW55: 565 | FX55: 74 | FY55: =MIN($C55:FT55) -> 4
A56: 43 | B56: Егорова Анна Андреевна | D56: 6 | G56: 7 | J56: 6 | L56: 6 | O56: 8 | R56: 10 | S56: 7 | U56: 8 | Z56: 4 | AA56: 8 | AC56: 7 | AD56: 6 | AG56: 8 | AH56: 6 | AI56: 6 | AM56: 8 | AN56: 8 | AO56: 10 | AT56: 8 | AY56: 7 | BA56: 8 | BE56: 4 | BG56: 7 | BI56: 9 | BM56: 8 | BO56: 8 | BP56: 10 | BT56: 7 | BW56: 8 | BX56: 5 | CA56: 7 | CD56: 9 | CI56: 9 | CK56: 8 | CO56: 8 | CV56: 5 | CX56: 8 | DB56: 7 | DC56: 10 | DH56: 7 | DJ56: 8 | DK56: 8 | DL56: 9 | DM56: 8 | DP56: 4 | DQ56: 8 | DR56: 7 | DU56: 10 | DV56: 8 | DX56: 8 | EA56: 8 | EB56: 10 | EC56: 8 | ED56: 9 | EE56: 6 | EG56: 8 | EK56: 9 | EL56: 9 | EP56: 10 | EQ56: 8 | ER56: 10 | ET56: 10 | EW56: 9 | EX56: 8 | EZ56: 10 | FB56: 7 | FC56: 6 | FD56: 10 | FF56: 8 | FG56: 10 | FK56: 8 | FL56: 7 | FM56: 8 | FN56: 10 | FU56: 1880.58 | FV56: =IF(FX56 > 0,FW56/FX56,0) -> 7.837837838 | FW56: 580 | FX56: 74 | FY56: =MIN($C56:FT56) -> 4
A57: 44 | B57: Василиади Елена Христоевна | D57: 6 | E57: 8 | G57: 5 | J57: 10 | L57: 7 | O57: 7 | R57: 10 | S57: 10 | U57: 8 | Z57: 7 | AA57: 8 | AD57: 4 | AG57: 7 | AM57: 8 | AN57: 7 | AO57: 10 | AT57: 10 | AY57: 6 | BA57: 7 | BC57: 8 | BE57: 4 | BG57: 6 | BI57: 4 | BN57: 4 | BO57: 7 | BP57: 10 | BT57: 7 | BW57: 7 | CB57: 6 | CD57: 9 | CI57: 5 | CJ57: 6 | CK57: 8 | CU57: 7 | CV57: 6 | CW57: 9 | DB57: 8 | DC57: 10 | DH57: 7 | DJ57: 8 | DK57: 9 | DL57: 7 | DM57: 10 | DP57: 9 | DQ57: 7 | DR57: 9 | DS57: 7 | DU57: 10 | DV57: 10 | DX57: 7 | DZ57: 8 | EA57: 7 | EB57: 9 | EC57: 10 | EE57: 8 | EF57: 7 | EG57: 8 | EK57: 10 | EL57: 10 | EP57: 10 | EQ57: 10 | ER57: 9 | ET57: 8 | EW57: 9 | EX57: 9 | EZ57: 10 | FB57: 10 | FC57: 9 | FD57: 10 | FE57: 10 | FF57: 8 | FK57: 6 | FL57: 9 | FM57: 8 | FN57: 10 | FU57: 1878.91 | FV57: =IF(FX57 > 0,FW57/FX57,0) -> 7.973333333 | FW57: 598 | FX57: 75 | FY57: =MIN($C57:FT57) -> 4
A58: 45 | B58: Старкова Ольга Андреевна | D58: 7 | G58: 7 | J58: 6 | L58: 6 | O58: 7 | R58: 10 | S58: 8 | U58: 8 | V58: 10 | Z58: 4 | AA58: 9 | AC58: 7 | AD58: 6 | AG58: 9 | AH58: 8 | AI58: 8 | AM58: 8 | AN58: 9 | AO58: 10 | AT58: 8 | AY58: 8 | BA58: 8 | BC58: 7 | BE58: 4 | BG58: 6 | BI58: 8 | BM58: 6 | BO58: 7 | BP58: 10 | BT58: 8 | BW58: 7 | BX58: 6 | CA58: 6 | CD58: 8 | CI58: 6 | CK58: 7 | CO58: 6 | CU58: 7 | CV58: 4 | CW58: 8 | DB58: 8 | DC58: 10 | DH58: 9 | DJ58: 8 | DK58: 8 | DL58: 8 | DM58: 7 | DO58: 6 | DP58: 7 | DQ58: 6 | DR58: 7 | DU58: 10 | DV58: 8 | DX58: 5 | EA58: 7 | EB58: 8 | EC58: 7 | ED58: 7 | EE58: 5 | EG58: 8 | EH58: 10 | EI58: 7 | EL58: 9 | EP58: 10 | EQ58: 7 | ER58: 10 | ET58: 10 | EW58: 9 | EX58: 5 | EZ58: 10 | FB58: 6 | FC58: 9 | FD58: 9 | FF58: 8 | FG58: 8 | FK58: 8 | FL58: 10 | FM58: 8 | FN58: 10 | FU58: 1876.33 | FV58: =IF(FX58 > 0,FW58/FX58,0) -> 7.64556962 | FW58: 604 | FX58: 79 | FY58: =MIN($C58:FT58) -> 4
A59: 46 | B59: Гудова Юлия Викторовна | D59: 8 | O59: 7 | U59: 8 | AA59: 8 | AG59: 8 | AN59: 9 | AS59: 9 | AT59: 8 | AU59: 6 | AY59: 6 | BA59: 8 | BE59: 4 | BG59: 8 | BI59: 10 | BM59: 6 | BO59: 7 | BP59: 10 | BR59: 4 | BT59: 6 | BW59: 9 | BX59: 6 | CA59: 5 | CD59: 9 | CF59: 7 | CI59: 10 | CK59: 8 | CN59: 9 | CO59: 7 | CR59: 9 | CT59: 5 | CV59: 5 | CX59: 9 | DA59: 4 | DB59: 7 | DC59: 10 | DE59: 6 | DH59: 8 | DJ59: 9 | DK59: 8 | DL59: 10 | DM59: 6 | DP59: 9 | DQ59: 6 | DR59: 7 | DU59: 10 | DV59: 7 | DX59: 4 | EA59: 6 | EB59: 5 | EC59: 7 | ED59: 7 | EE59: 9 | EG59: 8 | EK59: 10 | EL59: 8 | EP59: 10 | EQ59: 9 | ER59: 8 | ES59: 9 | ET59: 9 | EW59: 8 | EX59: 6 | EZ59: 10 | FA59: 9 | FB59: 8 | FC59: 6 | FD59: 9 | FF59: 7 | FI59: 9 | FK59: 4 | FL59: 8 | FM59: 9 | FN59: 10 | FU59: 1866.5 | FV59: =IF(FX59 > 0,FW59/FX59,0) -> 7.630136986 | FW59: 557 | FX59: 73 | FY59: =MIN($C59:FT59) -> 4
A60: 47 | B60: Данилова Анастасия Андреевна | D60: 7 | G60: 8 | J60: 5 | L60: 6 | O60: 8 | R60: 10 | S60: 5 | U60: 7 | Z60: 6 | AA60: 9 | AC60: 8 | AD60: 5 | AG60: 5 | AK60: 10 | AM60: 8 | AN60: 9 | AO60: 10 | AT60: 8 | AY60: 6 | BA60: 6 | BE60: 5 | BG60: 4 | BI60: 4 | BM60: 6 | BO60: 8 | BP60: 10 | BT60: 4 | BW60: 7 | BX60: 6 | CA60: 7 | CD60: 8 | CI60: 9 | CK60: 8 | CO60: 8 | CV60: 4 | CW60: 7 | DC60: 10 | DH60: 8 | DJ60: 8 | DK60: 6 | DL60: 7 | DM60: 6 | DP60: 10 | DQ60: 8 | DR60: 7 | DU60: 10 | DV60: 6 | DX60: 6 | EA60: 7 | EB60: 8 | EC60: 9 | ED60: 9 | EE60: 10 | EG60: 8 | EH60: 9 | EL60: 8 | EP60: 10 | EQ60: 8 | ER60: 8 | ET60: 10 | EW60: 10 | EX60: 5 | EZ60: 10 | FA60: 10 | FB60: 8 | FC60: 9 | FD60: 8 | FF60: 9 | FK60: 8 | FL60: 10 | FM60: 9 | FN60: 10 | FU60: 1865.06 | FV60: =IF(FX60 > 0,FW60/FX60,0) -> 7.680555556 | FW60: 553 | FX60: 72 | FY60: =MIN($C60:FT60) -> 4
A61: 48 | B61: Милушкова Полина Юрьевна | D61: 7 | E61: 8 | G61: 7 | J61: 6 | L61: 5 | O61: 8 | R61: 10 | S61: 10 | U61: 8 | Z61: 4 | AA61: 9 | AD61: 5 | AG61: 9 | AH61: 8 | AI61: 8 | AM61: 9 | AN61: 8 | AO61: 10 | AT61: 8 | AY61: 7 | BA61: 9 | BC61: 9 | BE61: 5 | BG61: 9 | BI61: 8 | BN61: 7 | BO61: 7 | BP61: 10 | BT61: 6 | BW61: 7 | CB61: 5 | CD61: 8 | CI61: 7 | CJ61: 7 | CK61: 9 | CU61: 9 | CV61: 8 | CX61: 8 | DC61: 10 | DH61: 9 | DJ61: 8 | DK61: 7 | DL61: 7 | DM61: 8 | DP61: 9 | DQ61: 6 | DR61: 7 | DS61: 8 | DU61: 10 | DV61: 8 | DX61: 6 | DZ61: 7 | EA61: 6 | EB61: 7 | EC61: 9 | EE61: 9 | EF61: 6 | EG61: 8 | EK61: 6 | EL61: 8 | EP61: 10 | EQ61: 10 | ER61: 9 | ET61: 7 | EW61: 10 | EX61: 5 | EZ61: 10 | FB61: 4 | FC61: 7 | FD61: 8 | FF61: 6 | FG61: 9 | FK61: 8 | FL61: 10 | FM61: 10 | FN61: 10 | FU61: 1864.47 | FV61: =IF(FX61 > 0,FW61/FX61,0) -> 7.815789474 | FW61: 594 | FX61: 76 | FY61: =MIN($C61:FT61) -> 4
A62: 49 | B62: Хачатрян Ангелина Владиславовна | D62: 6 | E62: 8 | G62: 6 | J62: 10 | L62: 7 | O62: 9 | R62: 10 | S62: 6 | U62: 6 | Z62: 5 | AA62: 9 | AD62: 6 | AG62: 7 | AK62: 7 | AM62: 7 | AN62: 8 | AO62: 10 | AT62: 8 | AY62: 7 | BA62: 7 | BE62: 4 | BG62: 8 | BI62: 4 | BN62: 6 | BO62: 8 | BP62: 10 | BT62: 6 | BW62: 10 | CB62: 7 | CD62: 9 | CI62: 8 | CJ62: 7 | CK62: 6 | CV62: 4 | CW62: 7 | DB62: 8 | DC62: 10 | DH62: 9 | DJ62: 8 | DK62: 8 | DL62: 9 | DM62: 7 | DP62: 8 | DQ62: 7 | DR62: 8 | DS62: 7 | DU62: 10 | DV62: 7 | DX62: 5 | DZ62: 7 | EA62: 6 | EB62: 9 | EC62: 8 | EE62: 8 | EF62: 7 | EG62: 9 | EK62: 8 | EL62: 10 | EP62: 10 | EQ62: 10 | ER62: 10 | ET62: 7 | EW62: 9 | EX62: 6 | EZ62: 10 | FB62: 5 | FC62: 8 | FD62: 8 | FF62: 6 | FH62: 10 | FK62: 7 | FL62: 7 | FM62: 10 | FN62: 10 | FU62: 1840.77 | FV62: =IF(FX62 > 0,FW62/FX62,0) -> 7.689189189 | FW62: 569 | FX62: 74 | FY62: =MIN($C62:FT62) -> 4
A63: 50 | B63: Гернеза Варвара Андреевна | D63: 6 | E63: 6 | G63: 7 | J63: 5 | L63: 5 | O63: 7 | R63: 10 | S63: 7 | U63: 6 | Z63: 4 | AA63: 8 | AD63: 4 | AG63: 6 | AH63: 7 | AI63: 7 | AM63: 9 | AN63: 8 | AO63: 10 | AT63: 8 | AY63: 6 | BA63: 7 | BC63: 9 | BE63: 4 | BG63: 8 | BI63: 7 | BN63: 7 | BO63: 8 | BP63: 10 | BT63: 5 | BW63: 6 | CB63: 6 | CD63: 8 | CI63: 7 | CJ63: 5 | CK63: 8 | CU63: 9 | CV63: 6 | CX63: 9 | DC63: 10 | DH63: 8 | DJ63: 7 | DK63: 9 | DL63: 9 | DM63: 7 | DP63: 7 | DQ63: 6 | DR63: 8 | DS63: 7 | DU63: 10 | DV63: 8 | DX63: 6 | DZ63: 8 | EA63: 8 | EB63: 8 | EC63: 8 | EE63: 8 | EF63: 6 | EG63: 8 | EK63: 9 | EL63: 9 | EM63: 9 | EP63: 10 | EQ63: 7 | ER63: 7 | ET63: 10 | EW63: 9 | EX63: 6 | EZ63: 10 | FB63: 8 | FC63: 6 | FD63: 8 | FE63: 9 | FF63: 6 | FK63: 8 | FL63: 7 | FM63: 10 | FN63: 10 | FU63: 1836.02 | FV63: =IF(FX63 > 0,FW63/FX63,0) -> 7.519480519 | FW63: 579 | FX63: 77 | FY63: =MIN($C63:FT63) -> 4
A64: 51 | B64: Зайцева Екатерина Николаевна | D64: 7 | G64: 7 | J64: 6 | L64: 7 | O64: 8 | R64: 10 | S64: 7 | U64: 7 | Z64: 4 | AA64: 10 | AC64: 7 | AD64: 6 | AG64: 9 | AK64: 8 | AM64: 8 | AN64: 8 | AO64: 10 | AT64: 8 | AY64: 7 | BA64: 7 | BC64: 6 | BE64: 4 | BG64: 8 | BI64: 4 | BM64: 7 | BO64: 8 | BP64: 10 | BT64: 5 | BW64: 7 | BX64: 5 | CA64: 6 | CD64: 8 | CI64: 9 | CK64: 7 | CO64: 8 | CU64: 6 | CV64: 4 | CW64: 8 | DC64: 10 | DH64: 7 | DJ64: 8 | DK64: 8 | DL64: 7 | DM64: 7 | DP64: 6 | DQ64: 6 | DR64: 6 | DU64: 10 | DV64: 7 | DX64: 5 | EA64: 8 | EB64: 8 | EC64: 7 | ED64: 8 | EE64: 9 | EG64: 8 | EK64: 10 | EL64: 9 | EP64: 10 | EQ64: 7 | ER64: 7 | ET64: 10 | EW64: 9 | EX64: 8 | EZ64: 10 | FB64: 10 | FC64: 7 | FD64: 8 | FF64: 7 | FG64: 8 | FK64: 5 | FL64: 7 | FM64: 8 | FN64: 10 | FU64: 1830.15 | FV64: =IF(FX64 > 0,FW64/FX64,0) -> 7.513513514 | FW64: 556 | FX64: 74 | FY64: =MIN($C64:FT64) -> 4
A65: 52 | B65: Гербер Александр Романович | D65: 7 | G65: 6 | J65: 9 | L65: 6 | O65: 7 | R65: 10 | S65: 5 | U65: 5 | Z65: 5 | AA65: 9 | AC65: 4 | AD65: 4 | AG65: 7 | AI65: 8 | AM65: 7 | AN65: 6 | AO65: 10 | AT65: 6 | AY65: 4 | BA65: 8 | BC65: 9 | BE65: 6 | BG65: 8 | BI65: 5 | BM65: 9 | BO65: 6 | BP65: 10 | BT65: 8 | BW65: 6 | BX65: 8 | CA65: 8 | CD65: 8 | CI65: 9 | CK65: 8 | CO65: 6 | CU65: 8 | CV65: 7 | CW65: 8 | DC65: 10 | DH65: 9 | DJ65: 8 | DK65: 9 | DL65: 9 | DM65: 9 | DP65: 7 | DQ65: 8 | DR65: 7 | DU65: 10 | DV65: 9 | DX65: 6 | EA65: 6 | EB65: 8 | EC65: 7 | ED65: 8 | EE65: 7 | EG65: 8 | EJ65: 5 | EM65: 9 | EN65: 9 | EP65: 10 | EQ65: 8 | ER65: 10 | ET65: 8 | EW65: 4 | EX65: 10 | EZ65: 10 | FB65: 8 | FC65: 8 | FD65: 10 | FE65: 8 | FF65: 8 | FK65: 8 | FL65: 7 | FM65: 8 | FN65: 10 | FU65: 1805.23 | FV65: =IF(FX65 > 0,FW65/FX65,0) -> 7.64 | FW65: 573 | FX65: 75 | FY65: =MIN($C65:FT65) -> 4
A66: 53 | B66: Мозжерова Анна Сергеевна | D66: 6 | G66: 8 | J66: 6 | L66: 6 | O66: 9 | R66: 10 | S66: 7 | U66: 7 | Z66: 5 | AA66: 10 | AC66: 6 | AD66: 4 | AG66: 7 | AI66: 8 | AM66: 8 | AN66: 7 | AO66: 10 | AT66: 9 | AY66: 7 | BA66: 6 | BE66: 5 | BG66: 8 | BI66: 4 | BM66: 6 | BO66: 6 | BP66: 10 | BT66: 5 | BW66: 6 | BX66: 6 | CA66: 5 | CD66: 6 | CI66: 5 | CK66: 6 | CO66: 7 | CV66: 6 | CW66: 6 | DC66: 10 | DH66: 7 | DJ66: 9 | DK66: 9 | DL66: 7 | DM66: 8 | DP66: 10 | DQ66: 7 | DR66: 7 | DU66: 10 | DV66: 7 | DX66: 7 | EA66: 8 | EB66: 7 | EC66: 8 | ED66: 10 | EE66: 10 | EG66: 9 | EH66: 10 | EJ66: 6 | EP66: 10 | EQ66: 10 | ER66: 10 | ET66: 8 | EW66: 9 | EX66: 5 | EZ66: 10 | FA66: 8 | FB66: 7 | FC66: 5 | FD66: 9 | FF66: 7 | FK66: 9 | FL66: 9 | FM66: 10 | FN66: 10 | FU66: 1799.98 | FV66: =IF(FX66 > 0,FW66/FX66,0) -> 7.569444444 | FW66: 545 | FX66: 72 | FY66: =MIN($C66:FT66) -> 4
A67: 54 | B67: Игнатчук Ольга Ивановна | D67: 6 | E67: 5 | G67: 7 | J67: 5 | L67: 6 | O67: 8 | R67: 10 | S67: 5 | U67: 6 | Z67: 8 | AA67: 9 | AD67: 4 | AG67: 9 | AH67: 9 | AI67: 9 | AM67: 9 | AN67: 7 | AO67: 10 | AT67: 9 | AY67: 6 | BA67: 6 | BC67: 8 | BE67: 6 | BG67: 7 | BI67: 6 | BN67: 6 | BO67: 7 | BP67: 10 | BT67: 6 | BW67: 8 | CB67: 7 | CD67: 9 | CI67: 7 | CJ67: 7 | CK67: 8 | CU67: 8 | CV67: 5 | CW67: 7 | DB67: 7 | DC67: 10 | DH67: 8 | DJ67: 9 | DK67: 8 | DL67: 7 | DM67: 6 | DO67: 8 | DP67: 5 | DQ67: 7 | DR67: 7 | DS67: 8 | DU67: 10 | DV67: 6 | DX67: 6 | DZ67: 4 | EA67: 6 | EB67: 6 | EC67: 7 | EE67: 8 | EF67: 4 | EG67: 8 | EH67: 10 | EI67: 6 | EJ67: 4 | EP67: 10 | EQ67: 10 | ER67: 7 | ET67: 9 | EW67: 8 | EX67: 8 | EZ67: 10 | FB67: 6 | FC67: 7 | FD67: 7 | FE67: 7 | FF67: 4 | FK67: 6 | FL67: 8 | FM67: 10 | FN67: 10 | FU67: 1799.62 | FV67: =IF(FX67 > 0,FW67/FX67,0) -> 7.303797468 | FW67: 577 | FX67: 79 | FY67: =MIN($C67:FT67) -> 4
A68: 55 | B68: Асангулова Рахат Талантбековна | D68: 6 | E68: 4 | G68: 6 | J68: 6 | L68: 5 | O68: 7 | R68: 10 | S68: 7 | U68: 8 | Z68: 6 | AA68: 9 | AD68: 4 | AG68: 8 | AK68: 8 | AM68: 8 | AN68: 8 | AO68: 10 | AT68: 10 | AY68: 5 | BA68: 6 | BC68: 9 | BE68: 5 | BG68: 5 | BI68: 4 | BN68: 4 | BO68: 8 | BP68: 10 | BT68: 4 | BW68: 4 | CB68: 6 | CD68: 7 | CI68: 6 | CJ68: 6 | CK68: 4 | CU68: 4 | CV68: 4 | CW68: 8 | DB68: 7 | DC68: 10 | DH68: 9 | DJ68: 7 | DK68: 8 | DL68: 7 | DM68: 8 | DO68: 8 | DP68: 7 | DQ68: 8 | DR68: 8 | DS68: 7 | DU68: 10 | DV68: 9 | DX68: 8 | DZ68: 4 | EA68: 5 | EB68: 4 | EC68: 8 | EE68: 10 | EF68: 4 | EG68: 8 | EH68: 10 | EI68: 7 | EJ68: 6 | EM68: 7 | EP68: 10 | EQ68: 8 | ER68: 7 | ET68: 9 | EW68: 8 | EX68: 5 | EZ68: 10 | FA68: 10 | FB68: 7 | FC68: 8 | FD68: 7 | FF68: 7 | FK68: 5 | FL68: 9 | FM68: 10 | FN68: 10 | FU68: 1791.01 | FV68: =IF(FX68 > 0,FW68/FX68,0) -> 7.126582278 | FW68: 563 | FX68: 79 | FY68: =MIN($C68:FT68) -> 4
A69: 56 | B69: Козырев Макар Денисович | D69: 7 | G69: 8 | J69: 10 | L69: 4 | O69: 8 | R69: 10 | S69: 9 | U69: 8 | Z69: 5 | AA69: 8 | AC69: 5 | AD69: 5 | AG69: 9 | AK69: 9 | AM69: 7 | AN69: 7 | AO69: 10 | AT69: 7 | AY69: 5 | BA69: 7 | BC69: 8 | BE69: 5 | BG69: 6 | BI69: 4 | BM69: 7 | BO69: 7 | BP69: 10 | BT69: 9 | BW69: 4 | BX69: 7 | CA69: 5 | CD69: 7 | CI69: 6 | CK69: 6 | CO69: 6 | CU69: 7 | CV69: 7 | CW69: 7 | DC69: 10 | DH69: 9 | DJ69: 7 | DK69: 8 | DL69: 8 | DM69: 7 | DP69: 9 | DQ69: 6 | DR69: 6 | DU69: 10 | DV69: 6 | DX69: 6 | EA69: 5 | EB69: 7 | EC69: 5 | ED69: 6 | EE69: 9 | EG69: 8 | EH69: 9 | EJ69: 4 | EM69: 8 | EP69: 10 | EQ69: 9 | ER69: 9 | ET69: 9 | EW69: 6 | EX69: 6 | EZ69: 10 | FA69: 9 | FB69: 7 | FC69: 10 | FD69: 10 | FF69: 6 | FK69: 10 | FL69: 10 | FM69: 9 | FN69: 10 | FU69: 1785.75 | FV69: =IF(FX69 > 0,FW69/FX69,0) -> 7.453333333 | FW69: 559 | FX69: 75 | FY69: =MIN($C69:FT69) -> 4
A70: 57 | B70: Реутова Полина Сергеевна | D70: 7 | G70: 7 | J70: 5 | L70: 4 | O70: 7 | R70: 10 | S70: 6 | U70: 4 | Z70: 4 | AA70: 9 | AC70: 7 | AD70: 4 | AG70: 6 | AH70: 4 | AI70: 4 | AM70: 7 | AN70: 5 | AO70: 10 | AT70: 10 | AY70: 4 | BA70: 5 | BE70: 4 | BG70: 5 | BI70: 4 | BM70: 5 | BO70: 4 | BP70: 10 | BT70: 4 | BW70: 7 | BX70: 4 | CA70: 7 | CD70: 6 | CI70: 8 | CK70: 7 | CO70: 7 | CV70: 7 | CW70: 7 | DC70: 10 | DH70: 9 | DJ70: 9 | DK70: 9 | DL70: 7 | DM70: 7 | DP70: 9 | DQ70: 8 | DR70: 7 | DU70: 10 | DV70: 8 | DX70: 8 | EA70: 7 | EB70: 10 | EC70: 9 | ED70: 10 | EE70: 10 | EG70: 8 | EH70: 10 | EL70: 10 | EP70: 10 | EQ70: 10 | ER70: 10 | ET70: 9 | EW70: 10 | EX70: 9 | EZ70: 10 | FA70: 9 | FB70: 8 | FC70: 7 | FD70: 8 | FF70: 9 | FK70: 7 | FL70: 8 | FM70: 9 | FN70: 10 | FU70: 1780.49 | FV70: =IF(FX70 > 0,FW70/FX70,0) -> 7.438356164 | FW70: 543 | FX70: 73 | FY70: =MIN($C70:FT70) -> 4
A71: 58 | B71: Мальцева Елизавета Олеговна | D71: 6 | G71: 6 | J71: 6 | L71: 4 | O71: 7 | R71: 10 | S71: 5 | U71: 7 | Z71: 5 | AA71: 9 | AC71: 7 | AD71: 4 | AG71: 7 | AI71: 9 | AM71: 7 | AN71: 7 | AO71: 10 | AT71: 10 | AY71: 7 | BA71: 7 | BC71: 5 | BE71: 4 | BG71: 4 | BI71: 4 | BM71: 6 | BO71: 6 | BP71: 10 | BT71: 4 | BW71: 8 | BX71: 5 | CA71: 8 | CD71: 10 | CI71: 10 | CK71: 9 | CO71: 7 | CU71: 6 | CV71: 5 | CW71: 8 | DB71: 8 | DC71: 10 | DH71: 8 | DJ71: 7 | DK71: 7 | DL71: 7 | DM71: 8 | DP71: 8 | DQ71: 5 | DR71: 7 | DU71: 10 | DV71: 8 | DX71: 6 | EA71: 7 | EB71: 6 | EC71: 7 | ED71: 8 | EE71: 10 | EG71: 9 | EK71: 7 | EL71: 8 | EP71: 10 | EQ71: 10 | ER71: 8 | ET71: 8 | EW71: 8 | EX71: 8 | EZ71: 10 | FB71: 6 | FC71: 7 | FD71: 9 | FF71: 6 | FH71: 10 | FK71: 10 | FL71: 8 | FM71: 10 | FN71: 10 | FU71: 1774.87 | FV71: =IF(FX71 > 0,FW71/FX71,0) -> 7.44 | FW71: 558 | FX71: 75 | FY71: =MIN($C71:FT71) -> 4
A72: 59 | B72: Трубицына Александра Викторовна | D72: 7 | E72: 9 | G72: 6 | J72: 9 | L72: 5 | O72: 8 | R72: 10 | S72: 5 | U72: 8 | Z72: 7 | AA72: 8 | AD72: 6 | AG72: 8 | AH72: 8 | AI72: 8 | AM72: 7 | AN72: 6 | AO72: 10 | AT72: 9 | AY72: 6 | BA72: 5 | BE72: 5 | BG72: 5 | BI72: 4 | BN72: 8 | BO72: 9 | BP72: 10 | BT72: 5 | BW72: 8 | CB72: 7 | CD72: 8 | CI72: 6 | CJ72: 4 | CK72: 5 | CV72: 8 | CW72: 9 | DC72: 10 | DH72: 7 | DJ72: 7 | DK72: 9 | DL72: 7 | DM72: 5 | DP72: 10 | DQ72: 7 | DR72: 9 | DS72: 7 | DU72: 10 | DV72: 5 | DX72: 6 | DZ72: 9 | EA72: 8 | EB72: 7 | EC72: 6 | EE72: 2 | EF72: 5 | EG72: 8 | EK72: 7 | EL72: 5 | EP72: 10 | EQ72: 10 | ER72: 6 | ET72: 8 | EW72: 9 | EX72: 8 | EZ72: 10 | FB72: 7 | FC72: 5 | FD72: 8 | FE72: 8 | FF72: 7 | FJ72: 6 | FK72: 7 | FL72: 4 | FM72: 10 | FN72: 10 | FU72: 1760.9 | FV72: =IF(FX72 > 0,FW72/FX72,0) -> 7.266666667 | FW72: 545 | FX72: 75 | FY72: =MIN($C72:FT72) -> 2
A73: 60 | B73: Васильева Анастасия Руслановна | D73: 6 | G73: 7 | J73: 6 | L73: 4 | O73: 8 | R73: 10 | S73: 6 | U73: 8 | Z73: 6 | AA73: 10 | AC73: 9 | AD73: 7 | AG73: 8 | AI73: 9 | AM73: 8 | AN73: 7 | AO73: 10 | AT73: 10 | AY73: 5 | BA73: 6 | BE73: 4 | BG73: 5 | BI73: 4 | BM73: 8 | BO73: 6 | BP73: 10 | BT73: 6 | BW73: 6 | BX73: 6 | CA73: 5 | CD73: 10 | CI73: 8 | CK73: 7 | CO73: 6 | CV73: 5 | CX73: 10 | DB73: 6 | DC73: 10 | DH73: 8 | DJ73: 7 | DK73: 6 | DL73: 6 | DM73: 6 | DP73: 7 | DQ73: 7 | DR73: 9 | DU73: 10 | DV73: 6 | DX73: 6 | EA73: 5 | EB73: 7 | EC73: 9 | ED73: 8 | EE73: 9 | EG73: 8 | EH73: 9 | EL73: 5 | EP73: 10 | EQ73: 10 | ER73: 8 | ET73: 9 | EW73: 7 | EX73: 5 | EZ73: 10 | FA73: 7 | FB73: 5 | FC73: 10 | FD73: 8 | FF73: 4 | FK73: 9 | FL73: 8 | FM73: 9 | FN73: 10 | FU73: 1757.04 | FV73: =IF(FX73 > 0,FW73/FX73,0) -> 7.383561644 | FW73: 539 | FX73: 73 | FY73: =MIN($C73:FT73) -> 4
A74: 61 | B74: Рыженкова Майя Ильинична | D74: 6 | G74: 8 | J74: 5 | L74: 6 | O74: 7 | R74: 10 | S74: 6 | U74: 4 | Z74: 5 | AA74: 9 | AC74: 5 | AD74: 6 | AG74: 7 | AK74: 8 | AM74: 8 | AN74: 8 | AO74: 10 | AT74: 9 | AY74: 7 | BA74: 7 | BE74: 4 | BG74: 8 | BI74: 5 | BM74: 7 | BO74: 7 | BP74: 10 | BT74: 4 | BW74: 8 | BX74: 6 | CA74: 10 | CD74: 9 | CI74: 7 | CK74: 8 | CO74: 7 | CV74: 5 | CW74: 8 | DC74: 10 | DH74: 8 | DJ74: 7 | DK74: 6 | DL74: 9 | DM74: 8 | DP74: 7 | DQ74: 6 | DR74: 7 | DU74: 10 | DV74: 8 | DX74: 5 | EA74: 6 | EB74: 8 | EC74: 8 | ED74: 8 | EE74: 9 | EG74: 8 | EK74: 9 | EL74: 8 | EP74: 10 | EQ74: 10 | ER74: 8 | ET74: 9 | EW74: 8 | EX74: 4 | EZ74: 10 | FB74: 7 | FC74: 8 | FD74: 8 | FF74: 5 | FH74: 9 | FK74: 6 | FL74: 7 | FM74: 8 | FN74: 10 | FU74: 1756.69 | FV74: =IF(FX74 > 0,FW74/FX74,0) -> 7.444444444 | FW74: 536 | FX74: 72 | FY74: =MIN($C74:FT74) -> 4
A75: 62 | B75: Шанталова Александра Спартаковна | D75: 7 | G75: 7 | J75: 7 | L75: 6 | O75: 7 | R75: 10 | S75: 7 | U75: 7 | Z75: 5 | AA75: 8 | AC75: 5 | AD75: 4 | AG75: 6 | AK75: 8 | AM75: 8 | AN75: 5 | AO75: 10 | AT75: 9 | AY75: 5 | BA75: 8 | BE75: 5 | BG75: 8 | BI75: 4 | BM75: 8 | BO75: 7 | BP75: 10 | BT75: 7 | BW75: 7 | BX75: 6 | CA75: 6 | CD75: 8 | CI75: 7 | CK75: 5 | CO75: 6 | CV75: 5 | CW75: 7 | DC75: 10 | DH75: 8 | DJ75: 9 | DK75: 8 | DL75: 7 | DM75: 7 | DP75: 7 | DQ75: 7 | DR75: 8 | DU75: 10 | DV75: 7 | DX75: 5 | EA75: 6 | EB75: 6 | EC75: 8 | ED75: 8 | EE75: 8 | EG75: 8 | EJ75: 6 | EK75: 7 | EP75: 10 | EQ75: 10 | ER75: 9 | ET75: 9 | EW75: 8 | EX75: 9 | EZ75: 10 | FA75: 8 | FB75: 6 | FC75: 8 | FD75: 9 | FF75: 4 | FK75: 8 | FL75: 9 | FM75: 9 | FN75: 10 | FU75: 1735.43 | FV75: =IF(FX75 > 0,FW75/FX75,0) -> 7.375 | FW75: 531 | FX75: 72 | FY75: =MIN($C75:FT75) -> 4
A76: 63 | B76: Заикина Полина Никитична | D76: 6 | G76: 6 | J76: 7 | L76: 5 | O76: 7 | R76: 10 | S76: 7 | U76: 8 | Z76: 4 | AA76: 8 | AC76: 5 | AD76: 6 | AG76: 6 | AH76: 6 | AI76: 6 | AM76: 7 | AN76: 7 | AO76: 10 | AT76: 9 | AY76: 5 | BA76: 7 | BE76: 4 | BG76: 7 | BI76: 4 | BM76: 8 | BO76: 7 | BP76: 10 | BT76: 6 | BW76: 7 | BX76: 6 | CA76: 8 | CD76: 9 | CI76: 4 | CK76: 6 | CO76: 6 | CV76: 6 | CX76: 8 | DB76: 6 | DC76: 10 | DH76: 9 | DJ76: 8 | DK76: 8 | DL76: 8 | DM76: 8 | DP76: 7 | DQ76: 5 | DR76: 6 | DU76: 10 | DV76: 9 | DX76: 5 | EA76: 6 | EB76: 6 | EC76: 7 | ED76: 8 | EE76: 10 | EG76: 8 | EH76: 10 | EL76: 8 | EP76: 10 | EQ76: 10 | ER76: 6 | ET76: 10 | EW76: 9 | EX76: 5 | EZ76: 10 | FA76: 6 | FB76: 6 | FC76: 6 | FD76: 9 | FF76: 6 | FK76: 5 | FL76: 7 | FM76: 9 | FN76: 10 | FU76: 1726.91 | FV76: =IF(FX76 > 0,FW76/FX76,0) -> 7.216216216 | FW76: 534 | FX76: 74 | FY76: =MIN($C76:FT76) -> 4
A77: 64 | B77: Кириллов Евгений Александрович | D77: 7 | G77: 6 | J77: 7 | L77: 4 | O77: 9 | R77: 10 | S77: 7 | U77: 7 | Z77: 5 | AA77: 10 | AC77: 9 | AD77: 5 | AG77: 8 | AI77: 8 | AM77: 9 | AN77: 7 | AO77: 10 | AT77: 8 | AY77: 6 | BA77: 7 | BC77: 6 | BE77: 4 | BG77: 7 | BI77: 4 | BM77: 10 | BO77: 7 | BP77: 10 | BT77: 6 | BW77: 9 | BX77: 8 | CA77: 4 | CD77: 9 | CI77: 10 | CK77: 7 | CO77: 6 | CU77: 6 | CV77: 5 | CX77: 8 | DC77: 10 | DH77: 9 | DJ77: 7 | DK77: 6 | DL77: 7 | DM77: 7 | DP77: 5 | DQ77: 5 | DR77: 7 | DU77: 10 | DV77: 5 | DX77: 5 | EA77: 6 | EB77: 5 | EC77: 7 | ED77: 4 | EE77: 10 | EG77: 6 | EK77: 5 | EL77: 8 | EP77: 10 | EQ77: 10 | ER77: 6 | ET77: 5 | EW77: 8 | EX77: 5 | EZ77: 10 | FB77: 6 | FC77: 8 | FD77: 8 | FE77: 6 | FF77: 4 | FK77: 6 | FL77: 7 | FM77: 8 | FN77: 10 | FU77: 1698.66 | FV77: =IF(FX77 > 0,FW77/FX77,0) -> 7.108108108 | FW77: 526 | FX77: 74 | FY77: =MIN($C77:FT77) -> 4
A78: 65 | B78: Кречетова Ангелина Олеговна | D78: 8 | G78: 8 | J78: 4 | L78: 5 | O78: 7 | R78: 10 | S78: 4 | U78: 5 | Z78: 4 | AA78: 9 | AC78: 7 | AD78: 4 | AG78: 6 | AH78: 4 | AI78: 4 | AM78: 6 | AN78: 8 | AO78: 10 | AT78: 10 | AY78: 4 | BA78: 5 | BE78: 4 | BG78: 10 | BI78: 5 | BM78: 5 | BO78: 7 | BP78: 10 | BT78: 6 | BW78: 4 | BX78: 4 | CA78: 8 | CD78: 6 | CI78: 7 | CK78: 4 | CO78: 5 | CV78: 4 | CW78: 4 | DC78: 10 | DH78: 10 | DJ78: 8 | DK78: 9 | DL78: 5 | DM78: 4 | DP78: 5 | DQ78: 7 | DR78: 8 | DU78: 10 | DV78: 5 | DX78: 4 | EA78: 5 | EB78: 6 | EC78: 7 | ED78: 8 | EE78: 10 | EG78: 7 | EJ78: 4 | EK78: 7 | EP78: 10 | EQ78: 10 | ER78: 8 | ET78: 10 | EW78: 8 | EX78: 9 | EZ78: 10 | FB78: 4 | FC78: 6 | FD78: 9 | FF78: 4 | FH78: 10 | FK78: 8 | FL78: 8 | FM78: 10 | FN78: 10 | FU78: 1607.85 | FV78: =IF(FX78 > 0,FW78/FX78,0) -> 6.821917808 | FW78: 498 | FX78: 73 | FY78: =MIN($C78:FT78) -> 4
A79: 66 | B79: Казокина Александра Сергеевна | D79: 5 | G79: 6 | J79: 6 | L79: 6 | O79: 8 | P79: 10 | R79: 10 | S79: 7 | U79: 7 | Z79: 4 | AA79: 7 | AC79: 7 | AD79: 4 | AG79: 7 | AM79: 6 | AN79: 4 | AO79: 10 | AP79: 7 | AT79: 6 | AY79: 4 | BA79: 6 | BC79: 9 | BE79: 1 | BG79: 6 | BI79: 4 | BM79: 4 | BO79: 7 | BP79: 10 | BT79: 5 | BW79: 4 | BX79: 4 | CA79: 5 | CD79: 8 | CI79: 6 | CK79: 5 | CO79: 5 | CU79: 9 | CV79: 4 | CW79: 6 | DC79: 10 | DH79: 10 | DJ79: 6 | DK79: 7 | DL79: 4 | DM79: 7 | DO79: 9 | DP79: 6 | DQ79: 7 | DR79: 5 | DU79: 10 | DV79: 6 | DX79: 4 | EA79: 4 | EB79: 6 | EC79: 6 | ED79: 6 | EE79: 5 | EG79: 7 | EI79: 9 | EJ79: 4 | EK79: 9 | EP79: 10 | EQ79: 10 | ER79: 7 | ET79: 9 | EU79: 7 | EV79: 4 | EW79: 9 | EX79: 5 | EZ79: 10 | FA79: 7 | FB79: 7 | FC79: 6 | FD79: 9 | FF79: 4 | FG79: 9 | FK79: 4 | FL79: 6 | FM79: 9 | FN79: 10 | FU79: 1597.27 | FV79: =IF(FX79 > 0,FW79/FX79,0) -> 6.6 | FW79: 528 | FX79: 80 | FY79: =MIN($C79:FT79) -> 1
A80: 67 | B80: Андреева Мария Дмитриевна | D80: 7 | E80: 8 | G80: 7 | J80: 4 | L80: 4 | O80: 7 | R80: 10 | S80: 5 | U80: 4 | Z80: 4 | AA80: 8 | AD80: 4 | AG80: 5 | AM80: 4 | AN80: 4 | AO80: 10 | AP80: 6 | AT80: 8 | AY80: 6 | BA80: 6 | BE80: 6 | BG80: 5 | BI80: 4 | BN80: 5 | BO80: 5 | BP80: 10 | BT80: 6 | BW80: 4 | CB80: 4 | CD80: 7 | CI80: 6 | CJ80: 4 | CK80: 5 | CV80: 4 | CW80: 8 | DC80: 10 | DH80: 7 | DJ80: 8 | DK80: 5 | DL80: 6 | DM80: 4 | DP80: 7 | DQ80: 5 | DR80: 7 | DS80: 7 | DU80: 10 | DV80: 5 | DX80: 6 | DZ80: 4 | EA80: 4 | EB80: 7 | EC80: 7 | EE80: 7 | EF80: 5 | EG80: 8 | EL80: 8 | EN80: 10 | EP80: 10 | EQ80: 8 | ER80: 10 | ET80: 7 | EW80: 9 | EX80: 5 | EY80: 10 | FB80: 6 | FC80: 6 | FD80: 8 | FF80: 7 | FH80: 10 | FK80: 6 | FL80: 9 | FM80: 10 | FN80: 10 | FU80: 1570.65 | FV80: =IF(FX80 > 0,FW80/FX80,0) -> 6.602739726 | FW80: 482 | FX80: 73 | FY80: =MIN($C80:FT80) -> 4
A81: 68 | B81: Голиков Александр Вячеславович | D81: 5 | G81: 7 | J81: 8 | L81: 6 | O81: 7 | R81: 10 | S81: 8 | U81: 6 | Z81: 4 | AA81: 8 | AC81: 4 | AD81: 4 | AG81: 7 | AI81: 9 | AM81: 7 | AN81: 4 | AO81: 10 | AT81: 4 | AY81: 4 | BA81: 7 | BE81: 4 | BG81: 9 | BI81: 4 | BM81: 8 | BO81: 5 | BP81: 10 | BT81: 7 | BW81: 4 | BX81: 7 | CA81: 6 | CD81: 9 | CI81: 6 | CK81: 4 | CO81: 4 | CV81: 6 | CX81: 6 | DC81: 10 | DH81: 6 | DJ81: 7 | DK81: 5 | DL81: 5 | DM81: 6 | DP81: 5 | DQ81: 5 | DR81: 5 | DU81: 10 | DV81: 6 | DX81: 4 | EA81: 5 | EB81: 4 | EC81: 7 | ED81: 4 | EE81: 7 | EG81: 7 | EJ81: 4 | EN81: 5 | EP81: 10 | EQ81: 8 | ER81: 7 | ET81: 7 | EW81: 6 | EX81: 4 | EZ81: 10 | FA81: 5 | FB81: 6 | FC81: 8 | FD81: 9 | FF81: 4 | FK81: 6 | FL81: 7 | FM81: 8 | FN81: 10 | FU81: 1473.94 | FV81: =IF(FX81 > 0,FW81/FX81,0) -> 6.388888889 | FW81: 460 | FX81: 72 | FY81: =MIN($C81:FT81) -> 4
